Workbook

Sheet Cover Page
N2: Version 22.3 30/11/22
N13: Notes:
N14: This template may require adjustments by individual operators to meet specific reporting requirements as defined in the site Permit(s)
B29: Annual Performance Report 2022
B31: Permit EPR/BV8067IL
B33: Newhaven Energy Recovery Facility
B35: Newhaven ERF
B37: Veolia
B39: Year: | C39: 2022
B41: Address: | C41: North Quay Road, East Sussex, BN9 0AB
B43: Tel: | C43: 08453 550 550
B45: Email:
B47: Prepared by: | C47: M Fumagall | F47: Position: | G47: Environmental Technician
B49: Approved by: | C49: P McMullen | F49: Position: | G49: Facility Manager
B51: Version: | C51: 1
B53: Issue Date: | C53: 2022-01-01

Sheet Contents
A1: =+'Cover Page'!$B$29 -> Annual Performance Report 2022 | E1: =+'Cover Page'!$B$33 -> Newhaven Energy Recovery Facility
A3: Contents | K3: Notes:
A4: Section | B4: Subject | H4: Page | K4: Section references and Page nos. to be inserted
B5: Facility Information | K5: Sections and Subjects may require adjustment by individual operators to meet specific reporting requirements as defined in the sites Permit(s)
B6: Operational Data
B7: Operational Summary
B8: Performance Form 1
B9: Energy Form 1
B10: Permit Compliance
B11: Improvements
B12: Public Liasion
B13: Carbon dioxide and nitrous oxide emissions
B14: Residue Quality
B15: Emissions to Water
B16: Emissions to Air (periodically monitored)
B17: Emissions to Air (continuously monitored)
B18: Hydrogen Chloride emissions
B19: Sulphur Dioxdie emsissions
B20: Oxides of Notrigen emissions
B21: Total Organic Carbon emissions
B22: Particulate Matter emissions
B23: Carbon Monoxide emissions
B24: Ammonia emissions
A27: Version Control
A28: Section | B28: Information | H28: Date
A35: Distribution
A36: Copy | B36: Name, Role | H36: No.
A45: This report is required under the Industrial Emissions Directive’s Article 55(2) requirements on reporting and public information on waste incineration plants and co-incineration plants, which require the operator to produce an annual report on the functioning and monitoring of the plant and make it available to the public.

Sheet Facility Info
A1: =+'Cover Page'!$B$29 -> Annual Performance Report 2022 | E1: =+'Cover Page'!$B$33 -> Newhaven Energy Recovery Facility
A3: Plant Description and Design | K3: Notes:
A5: The Newhaven Energy Recovery Facility processes about half the household waste in the South Downs area. That’s approximately 240,000 tonnes of waste per year. The facility converts waste unsuitable for recycling into over 19. megawatts of electrical energy - enough power to supply 25,000 homes The electricity produced is then supplied to the National Grid. The Energy Recovery Facility is the first facility of its kind to be built in the South Downs area and is designed to make it a cleaner and greener place to live. | K5: Include summary of plant design, design capacity, no. of combustion lines, electrical and heat capacity and any other general information that descibes the facility, its location and purpose
A20: Summary of Operational Processes and Procedures
A22: Technical details of the plant: Maximum Permitted Refuse throughput – 242,000 tonnes per annum, with approximately 14 tonnes per hour burning capacity per stream Storage capacity – four days full plant capacity Number of tipping bays – 8 Steam output – 86 tonnes of steam per hour at 400*C and 49 bar Flue gas treatment – dry lime scrubber followed by high performance bag filters, discharging into a 65 metre high chimney Energy produced – maximum generating capacity 19MW The ERF is regulated by the Environment Agency and is certified in compliance with: ISO 9001 : 2008 ISO 14001 : 2004, and OHAS 18001 : 2007 | K22: Include summary of key processes and procedures such as (but not limited to); waste reception, control rooms, grate, bed and bolier, energy & heat generation, cooling systems, residue management, emission controls, health and safety systems, maintenance

Sheet Operational Data
A1: =+'Cover Page'!$B$29 -> Annual Performance Report 2022 | E1: =+'Cover Page'!$B$33 -> Newhaven Energy Recovery Facility
A3: Operational Data | K3: Notes:
A4: Plant Size | D4: tonnes pa | E4: 242000 | F4: MWth | G4: 19 | H4: MWe | K4: * - RDF to include SRF
A5: No. of combustion lines | B5: 2 | D5: No. of Turbines: | F5: 1 | K5: ** - CHP plants only
K6: 2020 updates include; heat in MWh, water in Litres, NCV in MJ/kg
A7: Waste types received | B7: Unit | C7: Q1 | D7: Q2 | E7: Q3 | F7: Q4 | G7: Year Total | H7: %
A8: Household / Local Authority | B8: tonnes | C8: =C18*0.809 -> 45655.106 | D8: 46502.938 | E8: 45392.99 | F8: 46564.422 | G8: =SUM(C8:F8) -> 184115.456 | H8: =IF(G8>0,G8/$G$18,"-") -> 0.809 | K8: Availabiity Definition: 'the availability of a line is to be calculated by the number of hours the line reported Continuously Monitored emission levels to the Regulator through the calendar year divided by the total number of hours in that year. The overall plant availability is calculated as the Mean of all lines in the plant. For clarity this includes periods of Other Than Normal Operating Conditions (OTNOC) and abnormal operation.' Rationale: The primary function of an Energy from Waste facility is the disposal of waste. It follows therefore that the availability of a plant is determined by the period of time a facility spends undertaking this activity.
A9: Commercial & Industrial | C9: =C18-C8 -> 10778.894 | D9: 10979.062 | E9: 10717.01 | F9: 10993.578 | G9: 43468.544 | H9: 0.191
A10: Hazardous
A11: Clinical
A12: Waste wood (biomass)
A13: Refuse Derived Fuel * - H'hold/LA
A14: Refuse Derived Fuel * - C&I
A15: Other [Please specify]
A16: Other [Please specify]
A17: Other [Please specify]
A18: Total waste received | C18: 56434 | D18: 57482 | E18: 56110 | F18: 57558 | G18: =SUM(G8:G17) -> 227584 | H18: 1
A19: Rejected Waste
A20: Unprocessed waste transferred out
A21: Total waste combusted | C21: 56908 | D21: 57689 | E21: 55828 | F21: 58282 | G21: =SUM(C21:F21) -> 228707 | H21: =IF(G21>0,G21/$G$18,"-") -> 1.004934442
A23: Energy Useage / Export | B23: Unit | C23: Q1 | D23: Q2 | E23: Q3 | F23: Q4 | G23: Year Total | H23: KWh/te
A24: Power Generated | B24: MWh | C24: 37870 | D24: 38146 | E24: 36282 | F24: 35709 | G24: =SUM(C24:F24) -> 148007 | H24: =IF(G24>0,G24*1000/$G$21,"-") -> 647.1467861
A25: Power Exported | C25: 32960 | D25: 33375 | E25: 31499 | F25: 30780 | G25: 128614 | H25: 562.3527046
A26: Power Used on site | C26: =C24-C25 -> 4910 | D26: 4771 | E26: 4783 | F26: 4929 | G26: 19393 | H26: 84.79408151
A27: Power Imported | C27: 0 | D27: 0 | E27: 0 | F27: 1 | G27: 1 | H27: 0.004372406616
A28: Parasitic Load | B28: % | C28: =IF(C24>0,1-C25/(C24+C27),"-") -> 0.1296540797 | D28: 0.1250720914 | E28: 0.1318284549 | F28: 0.1380565668 | G28: 0.1310334577
A29: Thermal Energy Produced ** | B29: MWh | G29: Operational
A30: Thermal Energy Exported **
A31: R1 value (if applicable) | D31: R1
A33: Waste Disposal & Recovery | B33: Unit | C33: Q1 | D33: Q2 | E33: Q3 | F33: Q4 | G33: Year Total | H33: % inputs
A34: APC Residues - produced | B34: tonnes | C34: 1602 | D34: 1711 | E34: 1601 | F34: 1627 | G34: =SUM(C34:F34) -> 6541 | H34: =IF(G34>0,G34/$G$21,"-") -> 0.02859991168
A35: IBA - produced | C35: 10188 | D35: 10905 | E35: 10408 | F35: 9666 | G35: 41167 | H35: 0.1799988632
A36: Metals recycling | C36: 1064 | D36: 1149 | E36: 1155 | F36: 1217 | G36: 4585 | H36: 0.02004748434
A37: Other
A38: Other
A39: Other
A41: Raw Material Usage | B41: Unit | C41: Q1 | D41: Q2 | E41: Q3 | F41: Q4 | G41: Year Total | H41: kg or Ltr /te
A42: Mains Water | B42: ltrs | C42: 9585 | D42: 10721 | E42: 10806 | F42: 9971 | G42: =SUM(C42:F42) -> 41083 | H42: =IF(G42>0,G42/$G$21,"-") -> 0.179631581
A43: Other Water | B43: ltrs
A44: Ammonia | B44: tonnes | C44: 69215 | D44: 31088 | E44: 34341 | F44: 26491 | G44: =SUM(C44:F44) -> 161135 | H44: =IF(G44>0,G44/$G$21,"-") -> 0.7045477401
A45: Urea | B45: kgs
A46: Activated Carbon | B46: tonnes | C46: 10774 | D46: 11822 | E46: 10456 | F46: 9281 | G46: =SUM(C46:F46) -> 42333 | H46: =IF(G46>0,G46/$G$21,"-") -> 0.1850970893
A47: Lime / hydrated lime | B47: tonnes | C47: 526 | D47: 611 | E47: 615 | F47: 522 | G47: 2274 | H47: 0.009942852646
A48: Fuel oil | B48: ltrs | C48: 21125 | D48: 27599 | E48: 53965 | F48: 106276 | G48: 208965 | H48: 0.9136799486
A49: Gas | B49: cf
A50: Other
A52: Summary | B52: Line/Unit | C52: Q1 | D52: Q2 | E52: Q3 | F52: Q4 | G52: Year Total | J52: Hrs in year
A53: Availability of waste combustion by line, hrs | B53: 1 | C53: 2052 | D53: 2178 | E53: 2054 | F53: 2183 | G53: =SUM(C53:F53) -> 8467 | H53: =G53/$J$53 -> 0.9665525114 | J53: 8760
B54: 2 | C54: 2160 | D54: 2110 | E54: 2205 | F54: 2032 | G54: 8507 | H54: 0.9711187215
H57: =G57/$J$53 -> 0
A58: Overall Availability, mean avg. of all lines, hrs | C58: =AVERAGE(C53:C54) -> 2106 | D58: 2144 | E58: 2129.5 | F58: 2107.5 | G58: 8487 | H58: =G58/J53 -> 0.9688356164
A59: Hours of turbine operations, hrs | B59: 1 | C59: 2160 | D59: 2184 | E59: 2208 | F59: 2208 | G59: =SUM(C59:F59) -> 8760 | H59: =G59/J53 -> 1
A60: Hours of turbine operations, hrs
A61: Hours of heat / steam export | H61: =IF(B61>0,G60/J53,"n/a") -> n/a
A62: Net Calorific Value of waste | B62: MJ/kg | C62: 9001 | D62: 9411 | E62: 9563 | F62: 9718 | G62: =average(C62:F62) -> 9423.25 | H62: -
A63: Abnormal Events | B63: qty. | H63: =IF(G63>0,"yes","no") -> no
A64: Abnormal operation | B64: hours | H64: =+(G64)/J53 -> 0
A65: Permit Breaches | B65: qty. | H65: =IF(G65>0,"yes","no") -> no

Sheet Operational Summary
A1: =+'Cover Page'!$B$29 -> Annual Performance Report 2022 | E1: =+'Cover Page'!$B$33 -> Newhaven Energy Recovery Facility
A3: Summary of Plant Operations and Maintenance during the reporting year | K3: Notes:
A5: Completion of the 24 month outage strategy There were no major component upgrades or replacements in 2022 and any maintenance was a-typical of the normal running of a waste incineration unit | K5: Include summary of key operational and/or mainteanance activity undertaken in the year, such as any major component upgrades and/or replacements
A29: Summary of Residue Handling for the reporting year
A31: The Incinerator Bottom Ash (IBA) is transported via railway to an aggregate processing facility situated in Brentford. The IBA is reprocessed into a number of different graded aggregates, ferrous and non ferrous metal products, which are then utilised in the construction and metal industry. Ferrous metals removed during on site processing of IBA are forwarded to a metals recycling facility. The metals are separated into individual fractions, and are sent on for utilisation in the metal industry. The fine particulate matter, known as Air Pollution Control Residue (APCr), is removed from the process by a fabric filter. The APCr is sent to Empire, another Veolia site located in Aldridge, West Midlands where it is used to neutralise spent acid wastes before final disposal. All wastes generated by the activities is treated in accordance with the waste hierarchy referred to in Article 4 of the Waste Framework Directive. All avenues for waste processing are continuously monitored and reviewed, any opportunities to improve on the current methods would be implemented at the earliest opportunity | K31: Include in here a summary of residue handling regimes and destinations

Sheet Perf. Form 1 & R1 & WU1 & RM1
A1: =+'Cover Page'!C39 -> 2022 | B1: Annual Reporting Performance Form 1
A3: =+'Cover Page'!B31 -> Permit EPR/BV8067IL | F3: Operator: | G3: =+'Cover Page'!B37:I37 -> 
A4: Facility: | B4: =+'Cover Page'!B33:I33 -> Newhaven Energy Recovery Facility | F4: Form: | G4: Performance 1
A6: Reporting Period from: | D6: 01.01.2022 | F6: to: | G6: 31.01.2022
A8: =+A1 -> 2022 | B8: Annual Reporting of Waste Disposal and Recovery
A9: Waste Description | C9: Disposal Route(s) | E9: Disposal Tonnes | G9: Recovery Tonnes | I9: % / tonne of waste incinerated
A10: 1) Hazardous Wastes
A11: APC Residues | C11: D9 | E11: ='Operational Data'!G34 -> 6541 | I11: =IF((E11+G11)>0,(E11+G11)/'Operational Data'!$G$18, "-") -> 0.02874103628
A12: IBA
A15: Total Hazardous Waste | E15: =SUM(E11:F14) -> 6541 | G15: =SUM(G11:H14) -> 0 | I15: =IF((E15+G15)>0,(E15+G15)/'Operational Data'!$G$18, "-") -> 0.02874103628
A17: 2) Non-Hazardous Wastes
A18: IBA | C18: R5 | G18: ='Operational Data'!G35 -> 41167 | I18: =IF((E18+G18)>0,(E18+G18)/'Operational Data'!$G$18, "-") -> 0.1808870571
A19: Ferrous Metal | C19: R4 | G19: ='Operational Data'!G36 -> 4585 | I19: =IF((E19+G19)>0,(E19+G19)/'Operational Data'!$G$18, "-") -> 0.02014640748
A20: Process Water
A23: Total Non-Hazardous Waste | E23: =SUM(E18:F22) -> 0 | G23: =SUM(G18:H22) -> 45752 | I23: =IF((E23+G23)>0,(E23+G23)/'Operational Data'!$G$18, "-") -> 0.2010334646
A24: TOTAL WASTE | E24: =E23+E15 -> 6541 | G24: =G23+15 -> 45767 | I24: =IF((E24+G24)>0,(E24+G24)/'Operational Data'!$G$18, "-") -> 0.2298404106
A26: Operator’s comments :
A27: The APC residue is utilised at a specialist hazardous waste treatment facility where it is re-used to neutralise acid wastes before final disposal
A31: =+A1 -> 2022 | B31: Annual Reporting of Water and Other Raw Material Usage
A32: Raw Material | E32: Usage | G32: Unit | H32: Specific Useage | J32: Unit
A33: Mains Water | E33: =+'Operational Data'!G42 -> 41083 | G33: m3 | H33: =IF(E33>0,E33/'Operational Data'!$G$21,"-") -> 0.179631581 | J33: m3/te
A34: Total Water | E34: =+'Operational Data'!G43+'Operational Data'!G42 -> 41083 | G34: m3 | H34: =IF(E34>0,E34/'Operational Data'!$G$21,"-") -> 0.179631581 | J34: m3/te
A35: Urea / Ammonia | E35: =+'Operational Data'!G44*1000 -> 161135000 | G35: kg | H35: =IF(E35>0,E35/'Operational Data'!$G$21,"-") -> 704.5477401 | J35: kg/te
A36: Activated Carbon | E36: =+'Operational Data'!G46*1000 -> 42333000 | G36: kg | H36: =IF(E36>0,E36/'Operational Data'!$G$21,"-") -> 185.0970893 | J36: kg/te
A37: Lime / hydrated lime / Sodium Bicarb. | E37: =+'Operational Data'!G47*1000 -> 2274000 | G37: kg | H37: =IF(E37>0,E37/'Operational Data'!$G$21,"-") -> 9.942852646 | J37: kg/te
A39: Operator’s comments :
A43: =+A31 -> 2022 | B43: Annual Reporting of other performance indicators
A44: Parameter | C44: Results by Line
C45: A1 | D45: A2 | E45: A3 | F45: A4 | G45: A5 | I45: Turbine 1 | J45: Turbine 2
A46: Operating hours for the year, hours | C46: ='Operational Data'!G53 -> 8467 | D46: ='Operational Data'!G54 -> 8507 | I46: ='Operational Data'!G59 -> 8760
A47: Number of periods of abnormal operation, qty. | C47: 0 | D47: 0
A48: Cumulative hours of abnormal operation for this year, hours | C48: 0 | D48: 0
A50: Operator’s comments :
A54: Signed: | G54: Date: | H54: 11th of January 2023

Sheet Energy Form 1
A1: =+'Cover Page'!C39 -> 2022 | B1: Annual Reporting of Energy Usage/Export
A3: =+'Cover Page'!B31 -> Permit EPR/BV8067IL | F3: Operator: | G3: =+'Cover Page'!B37:I37 -> 
A5: Facility: | B5: =+'Cover Page'!B33:I33 -> Newhaven Energy Recovery Facility | F5: Form: | G5: Energy 1
A7: Reporting Period from: | D7: =+'Perf. Form 1 & R1 & WU1 & RM1'!D6:E6 -> 01.01.2022 | F7: to: | G7: =+'Perf. Form 1 & R1 & WU1 & RM1'!G6:H6 -> 31.01.2022
A9: Energy Source | D9: Energy Usage | F9: Unit | G9: Specific Useage (KWh/tonne incinerated
A10: Electricity Produced | D10: =+'Operational Data'!G24 -> 148007 | F10: MWh | G10: =+'Operational Data'!H24 -> 647.1467861
A11: Electricity Imported | D11: =+'Operational Data'!G27 -> 1 | F11: MWh | G11: =+'Operational Data'!H27 -> 0.004372406616
A12: Electricity Exported | D12: =+'Operational Data'!G25 -> 128614 | F12: MWh | G12: =+'Operational Data'!H25 -> 562.3527046
A13: Gas Oil | F13: tonnes
A14: Steam/hot water exported | D14: =+'Operational Data'!G30 ->  | F14: GWh | G14: =+'Operational Data'!H30 -> 
A18: Operator’s comments :
A29: Signed: | G29: Date: | H29: 18th of January 2023

Sheet Performance Parameters
A1: =+'Cover Page'!C39 -> 2022 | B1: Annual Reporting of Performance Parameters
A3: =+'Cover Page'!B31 -> Permit EPR/BV8067IL | F3: Operator: | G3: Veolia South Downs Ltd
A5: Facility: | B5: ='Cover Page'!B35 -> Newhaven ERF | F5: Form: | G5: N/A
A7: Reporting Period from: | D7: 01.01.2022 | F7: to: | G7: 31.12.2022
A10: Parameter | G10: Units
A11: Mass of Bottom Ash Produced | F11: ='Operational Data'!G35/'Operational Data'!G18 -> 0.1808870571 | G11: kg / tonne of waste incinerated
A12: Mass of APC residues produced | F12: ='Operational Data'!G34/'Operational Data'!G18 -> 0.02874103628 | G12: kg / tonne of waste incinerated
A14: Operator's comments: This form is submitted to the Environment Agency in accordance with Permit Condition 4.2.2 and Table S4.3
A19: Signed: | G19: Date: | H19: 18th January 2023

Sheet Permit Compliance
A1: =+'Cover Page'!$B$29 -> Annual Performance Report 2022 | E1: =+'Cover Page'!$B$33 -> Newhaven Energy Recovery Facility
A3: Summary of Permit Compliance
A5: Compliance with permit limits for continuously monitored pollutants
A7: The plant met its emission limits as shown in the table below:
A8: Substance | C8: Percentage time compliant during operation | L8: Notes:
C9: Half-hourly limit | F9: Daily limit | L9: Report to 2 decimal places, i.e. xx.xx% Please provide a brief summary of each notification or non-compliance in the table (rather than just referring to notifications that were sent to the Regulator).
A10: Particulates | C10: 1 | F10: 1
A11: Oxides of nitrogen | C11: 1 | F11: 1
A12: Sulphur dioxide | C12: 1 | F12: 1
A13: Carbon monoxide | C13: 100.00% 95% of 10-min averages | F13: 1
A14: Total organic carbon | C14: 1 | F14: 1
A15: Hydrogen chloride | C15: 1 | F15: 1
A16: Hydrogen fluoride | C16: 1 | F16: 1
A19: Summary of any notifications or non-compliances under the permit
A20: Date | B20: Summary of notification or non-compliance [including Line/Reference] | E20: Reason | H20: Measures taken to prevent reoccurrence
A21: n/a | B21: n/a | E21: n/a | H21: n/a
A27: Summary of any complaints received and actions to taken to resolve them.
A28: Date | B28: Summary of complaint [including Line/Reference] | E28: Reason * | H28: Measures taken to prevent reoccurrence
A29: 2022-12-03 | B29: 76434 - Odour complaint at 06:30 | E29: Unsubstantiated | H29: Unsubstantiated
E34: * including whether substantiated by the operator or the EA

Sheet Improvements
A1: =+'Cover Page'!$B$29 -> Annual Performance Report 2022 | E1: =+'Cover Page'!$B$33 -> Newhaven Energy Recovery Facility
A3: Summary of Plant Improvements
A5: Summary of any efficiency improvements that have been completed within the year.
A6: Streamlining and planned preventative maintenance of current assets
A16: Summary of any permit improvement conditions that have been completed within the year and the resulting environmental benefits.
A17: There are 3 new Improvement Conditions as a result of the permit variation in 2022. Tests are currently being carried out for the following requirements: 1. The operator shall submit a report to the Environmental Agency on whether waste feed to the plant can be proven to have a low stable mercury content. Due: 30/09/2023 2. The operator shall submit a report to the Environmental agency on whether dioxin emissions to air are stable. Due: 30/09/2023 3. The operator shall perform a study to determine the extent to which the operation of the current systems in place at the plant to minimise NOx emmisions can be further optomised such that emissions are reduced as far as possible below 180mg/Nm3 as a daily average, without significantly increasing emissions of other pollutants or having a significant negative effect on plant operation, reliability or bottom ash quality. Due: 30/09/2023
A27: Summary of any changes to the plant or operating techniques which required a variation to the permit and a summary of the resulting environmental impact.
A28: A new permit variation has been received in 2022 to satisfy the requirements of the new IED BREF for Energy from Waste plants. New daily ELVs to come into effect from 03/12/2023. See permit for details.”
A38: Summary of any other improvements made to the plant or planned to be made and a summary of the resulting environmental benefits.
A39: Continuation of 24 month outage strategy resulting in higher availability and less waste diversion to Landfill The Facility recovers energy with a high level of energy efficiency, this is evident by the performance of the plant, and the R1 status awarded to the Facility each year. The efficiency of the Facility is continuously being reviewed, if a new viable technology or technique emerges that would enable the Plant to increase it's performance further, it would be implemented at the next available oppourtunity. Every practicable opportunity to use the heat rejected at the steam condensers for beneficial local use is investigated. To date no cost effective or practicable options have become available. The site will continue to identify all possible opportunities, and investigate the practicalities of its installation. All viable developments will be implemented at the earliest opportunity. Raw materials used on site are trended by the Facility Manager and recorded on the company intranet so that benchmarks are visible to the group. These Key Performance Indicators (KPIs) are reviewed daily, weekly, monthly and annually. If any opportunities arise which would result in reduction or avoidance in raw material usage, they will be implemented at the earliest convenience. There are no improvements to be made at this time regarding the use of raw materials at the site.

Sheet Public Liasion
A1: =+'Cover Page'!$B$29 -> Annual Performance Report 2022 | E1: =+'Cover Page'!$B$33 -> Newhaven Energy Recovery Facility
A3: Details of Public & Stakeholder Liasion
A5: Summary of events held during the reporting year.
A6: Date | C6: Description
A7: n/a | C7: Veolia Wonder Day: Planned for 2022. Cancelled due to a tube leak.
A16: List of events planned for next year
A17: Date | C17: Description
A18: TBC | C18: Veolia Wonder Day: Veolia invites visitors from across the county to come along and discover what happens at our waste management facilities. Behind the scenes tours and activities offer an insight into the entire integrated network of our recycling and recovery operations and the importance of disposing of your waste properly.
A29: If you wish to be involved in the public liasion programme, please contact _________________

Sheet CO2 N2O
A1: =+'Cover Page'!$B$29 -> Annual Performance Report 2022 | C1: =+'Cover Page'!$B$33 -> Newhaven Energy Recovery Facility
A3: Carbon dioxide emissions and biogenic content of waste inputs | E3: Notes:
A5: Carbon dioxide emissions (all types of plant)
A6: Annual mass of carbon dioxide released | B6: x tonnes | C6: =115473.35+108810.94 -> 224284.29
A7: Annual mass of carbon dioxide released per tonne of waste burned | B7: x tonnes | C7: =C6/'Operational Data'!G21 -> 0.9806621135
A8: Annual mass of carbon dioxide released per MWh of energy exported | B8: x tonnes | C8: =C6/'Operational Data'!G25 -> 1.743855957
A9: Description of how annual carbon dioxide mass emission has been calculated | B9: CEM data | E9: Note 1: Where available, data from CO2 CEMS should be used. Otherwise, where no CEMS data is available, a suitable emissions factor should be used based on the tonnage of waste burned e.g.0.992 tCO2/t waste as per Tolvik report 2021, or other justified emissions factor - refer to embedded Environment Agency guidance note above or updated version for suitable descriptive text.
A11: Nitrous oxide emissions (only plants which use ammonia or urea to abate NOx emissions)
A12: Annual mass emissions of nitrous oxide | B12: x tonnes | C12: =7.7+1.0032 -> 8.7032
A13: Description of how annual nitrous oxide mass emission has been calculated | B13: CEM data | E13: Note 2: Where available, data from N2O CEMS should be used, or if no CEMS data is available, from periodic monitoring. Otherwise, a suitable emissions factor should be used based on the tonnage of waste burned e.g. 0.0981 kgN20/t waste as per 2021 Pollution Inventory data for plants with urea-based SNCR - refer to embedded Environment Agency guidance note above or updated version for suitable descriptive text.
A14: Total annual carbon dioxide and nitrous oxide emissions as carbon dioxide equivalent (whereby 1 t nitrous oxide is equivalent to 298 t carbon dioxide) | B14: x tonnes CO2e | C14: =(C12*298)+C6 -> 226877.8436
A16: Biogenic fraction of the waste and biogenic CO2 emissions (only plants burning residual municipal waste, refuse derived fuel or solid recovered fuel)
A17: Yearly average biogenic percentage of the waste by net calorific value (NCV) | B17: 0.518 | C17: ='Operational Data'!G21*0.518 -> 118470.226
A18: Description of how biogenic NCV percentage has been calculated or estimated | B18: Combused waste multiplied by the WRAP data for residual waste of 51.8% | E18: Note 3: Where available, data from waste sampling should be used; otherwise, an estimated figure with justification can be used, or a figure assumed on the basis of a national average e.g. 2017 WRAP data for residual waste of 51.8% biogenic energy content - refer to embedded Environment Agency guidance note above or updated version for suitable descriptive text, quoting standards where relevant.
A19: Percentage of total carbon dioxide emissions arising from biogenic waste | B19: 0.518 | C19: 118470
A20: Description of how percentage biogenic carbon dioxide emissions have been calculated | B20: Wrap data for residual waste of 51.8% | E20: Note 4: Examples include direct measurement via C14 method or BIOMA software - refer to embedded Environment Agency guidance note above or updated version for suitable descriptive text, quoting standards where relevant. Otherwise, as an approximation (and in lieu of any more accurate metrics which may be developed in future), the measured or estimated biogenic fraction by net calorific value can be assumed to be the same as the biogenic CO2 fraction of the total CO2 emissions from the plant.
A22: Comments:

Sheet Residue Quality
A1: =+'Cover Page'!$B$29 -> Annual Performance Report 2022 | E1: =+'Cover Page'!$B$33 -> Newhaven Energy Recovery Facility
A3: Residue Quality Monitoring Requirements
A5: Summary of monitoring undertaken and compliance
A6: IBA - Two samples per month are analysed under the ESA protocol One sample per quarter analysed for Permit requirements
A8: APCr - One sample per quarter analysed for Permit requirements
A13: Commentary on any specific events
A14: Date & Event | C14: Description
A27: Residue Quality Monitoring Results
A28: Parameter (unit) | C28: Limit | D28: Normal Operation
D29: Bottom ash | F29: APC Residues
A30: Loss on Ignition (average %) | C30: <5% | D30: -
A31: Total Organic Carbon (average %) | C31: <3% | D31: =(0.9+0.7+0.7+0.55)/4 -> 0.7125
A32: No. of Assessments Undertaken | C32: --- | D32: 4 | F32: 4
A33: No. of Hazardous Results | C33: --- | D33: 0
A35: Comments :
A36: TOC result is average of quarterly values

Sheet Water
A1: =+'Cover Page'!$B$29 -> Annual Performance Report 2022 | E1: =+'Cover Page'!$B$33 -> Newhaven Energy Recovery Facility
A3: Emissions to Water
A5: Summary of monitoring undertaken and compliance
A6: Zero discharge to sewer in 2022
A13: Commentary on any specific events
A14: Date & Event | C14: Description
A22: Emissions to Water / Sewer
A23: Parameter | D23: Monitoring Frequency | F23: Limit | G23: Target | H23: Max. | I23: Average

Sheet Air (periodic)
A1: =+'Cover Page'!$B$29 -> Annual Performance Report 2022 | E1: =+'Cover Page'!$B$33 -> Newhaven Energy Recovery Facility
A3: Emissions to Air (periodically monitored)
A5: Summary of monitoring undertaken, standards used and compliance | M5: Notes:
A6: Monitoring undertaken in accordance with the standards listed in the Permit, compliance was maintained for 100% of 2022 | M6: Template may require adjustment for any bespoke monitoring requirements of permit.
A9: Results of emissions to air that are periodically monitored
A10: Substance | C10: Ref. Period | D10: Emission Limit Value | F10: Average | M10: User to add additional tables as necessary, depending on whether quarterly or bi-annual reporting is required for the compliance year
F11: A1 | G11: A2 | H11: A3 | I11: A4 | J11: A5
A12: Hydrogen fluoride | C12: 1 hr | D12: 2 mg/m3 | F12: 0.052 | G12: 0.101
A13: Cd and Th and their compounds | C13: 6-8hrs | D13: 0.05 mg/m3 | F13: 0.0031 | G13: 0.001195
A14: Hg and its compounds | C14: 6-8hrs | D14: 0.05 mg/m3 | F14: 0.0016 | G14: 0.00112
A15: Sb, As, Pb, Cr, Co, Cu, Mn, Ni, V and their compounds | C15: 6-8hrs | D15: 0.5 mg/m3 | F15: 0.0657 | G15: 0.034
A16: Dioxins & Furans (I-TEQ) | C16: 6-8hrs | D16: 0.1 ng/m3 | F16: 0.028 | G16: 0.00345
A17: PCBs (WHO-TEQ Humans / Mammals) | C17: 6-8hrs | D17: None set ng/m3 | F17: 0.0275 | G17: 0.0035
A18: PCBs (WHO-TEQ Fish) | C18: 6-8hrs | D18: None set ng/m3 | F18: 0.0255 | G18: 0.0032
A19: PCBs (WHO-TEQ Birds) | C19: 6-8hrs | D19: None set ng/m3 | F19: 0.0405 | G19: 0.0069
A20: Dioxins & Furans (WHO-TEQ Humans / Mammals) | C20: 6-8hrs | D20: None set ng/m3 | F20: 0.0015 | G20: 0.000254
A21: Dioxins & Furans (WHO-TEQ Fish) | C21: 6-8hrs | D21: None set ng/m3 | F21: 0.013548 | G21: 1.35e-05
A22: Dioxins & Furans (WHO-TEQ Birds) | C22: 6-8hrs | D22: None set ng/m3 | F22: 0.00414 | G22: 0.00101
A23: Anthanthrene | C23: 6-8hrs | D23: None set µg/m3 | F23: 0.00125 | G23: 0.0014
A24: Benzo(a)anthracene | C24: 6-8hrs | D24: None set µg/m3 | F24: 0.0016 | G24: 0.00155
A25: Benzo(a)pyrene | C25: 6-8hrs | D25: None set µg/m3 | F25: 0.00125 | G25: 0.0067
A26: Benzo(b)fluoranthene | C26: 6-8hrs | D26: None set µg/m3 | F26: 0.0038 | G26: 0.0034
A27: Benzo(b)naptho(2,1-d) thiophene | C27: 6-8hrs | D27: None set µg/m3 | F27: =0.0037+0.015 -> 0.0187 | G27: =(0.0036+0.01)/2 -> 0.0068
A28: Benzo(c)phenanthrene | C28: 6-8hrs | D28: None set µg/m3 | F28: =(0.0006+0.0017)/2 -> 0.00115 | G28: =(0.0006+0.0016) -> 0.0022
A29: Benzo(ghi)perylene | C29: 6-8hrs | D29: None set µg/m3 | F29: =(0.0019+0.0039)/2 -> 0.0029 | G29: =(0.0019+0.0024)/2 -> 0.00215
A30: Benzo(k)fluoranthene | C30: 6-8hrs | D30: None set µg/m3 | F30: 0.00125 | G30: 0.0014
A31: Cholanthrene | C31: 6-8hrs | D31: None set µg/m3 | F31: =(0.0006+0.0013)/2 -> 0.00095 | G31: =(0.0006+0.0016)/2 -> 0.0011
A32: Chrysene | C32: 6-8hrs | D32: None set µg/m3 | F32: =(0.0033+0.0044)/2 -> 0.00385 | G32: =(0.0026+0.0019)/2 -> 0.00225
A33: Cyclopenta(cd)pyrene | C33: 6-8hrs | D33: None set µg/m3 | F33: =(0.0006+0.0013)/2 -> 0.00095 | G33: =(0.0006+0.0016)/2 -> 0.0011
A34: Dibenzo(ai)pyrene | C34: 6-8hrs | D34: None set µg/m3 | F34: 0.00095 | G34: 0.0011
A35: Dibenzo(ah)anthracene | C35: 6-8hrs | D35: None set µg/m3 | F35: 0.00095 | G35: 0.0011
A36: Fluoranthene | C36: 6-8hrs | D36: None set µg/m3 | F36: 0.1121 | G36: 0.116
A37: Indeno(123-cd) pyrene | C37: 6-8hrs | D37: None set µg/m3 | F37: 0.0031 | G37: 0.0025
A38: Naphthalene | C38: 6-8hrs | D38: None set µg/m3 | F38: 7.5141 | G38: 0.7475
A39: Comments :
A40: <LOD reported as LOD

Sheet Air (CEMS)
A1: =+'Cover Page'!$B$29 -> Annual Performance Report 2022 | I1: =+'Cover Page'!$B$33 -> Newhaven Energy Recovery Facility
A3: Emissions to Air (continously monitored)
P4: Notes:
A5: Summary of monitoring undertaken, standards used and compliance | P5: Template may require adjustment for any bespoke monitoring requirements of permit
A6: Monitoring undertaken in accordance with the standards listed in the Permit, compliance was maintained for 100% of 2022 | P6: Report to 2 decimal places, i.e. xx.xx%
A11: Results of emissions to air that are continuously monitored (maximum and average values for each line)
A12: Substance | B12: Reference Period | C12: Emission Limit Value | D12: A1 | F12: A2 | H12: A3 | J12: A4 | L12: A5
D13: Max. | E13: Avg. | F13: Max. | G13: Avg. | H13: Max. | I13: Avg. | J13: Max. | K13: Avg. | L13: Max. | M13: Avg.
A14: Oxides of nitrogen | B14: Daily mean | C14: 200 mg/m3 | D14: =NOx!O19 -> 188.7 | E14: =NOx!N19 -> 168.2666667 | F14: =NOx!O34 -> 192.7 | G14: =NOx!N34 -> 179.7833333
B15: ½ hourly mean | C15: 400 mg/m3 | D15: =NOx!M19 -> 231.5 | E15: =NOx!L19 -> 168.1666667 | F15: =NOx!M34 -> 263.7 | G15: =NOx!L34 -> 179.8416667
A16: Particulates | B16: Daily mean | C16: 10 mg/m3 | D16: =Particulates!O19 -> 8.4 | E16: =Particulates!N19 -> 4.508333333 | F16: =Particulates!O34 -> 3.8 | G16: =Particulates!N34 -> 1.216666667
B17: ½ hourly mean | C17: 30 mg/m3 | D17: =Particulates!M19 -> 22 | E17: =Particulates!L19 -> 4.55 | F17: =Particulates!M34 -> 11.3 | G17: =Particulates!L34 -> 1.233333333
A18: Total Organic Carbon | B18: Daily mean | C18: 10 mg/m3 | D18: =TOC!O19 -> 1 | E18: =TOC!N19 -> 0.3 | F18: =TOC!O34 -> 0.5 | G18: =TOC!N34 -> 0.1916666667
B19: ½ hourly mean | C19: 20 mg/m3 | D19: =TOC!M19 -> 13.8 | E19: =TOC!L19 -> 0.325 | F19: =TOC!M34 -> 6.9 | G19: =TOC!L34 -> 0.2083333333
A20: Hydrogen chloride | B20: Daily mean | C20: 10 mg/m3 | D20: =HCl!O19 -> 7.4 | E20: =HCl!N19 -> 4.133333333 | F20: =HCl!O34 -> 6.8 | G20: =HCl!N34 -> 4.391666667
B21: ½ hourly mean | C21: 60 mg/m3 | D21: =HCl!M19 -> 15.4 | E21: =HCl!L19 -> 4.191666667 | F21: =HCl!M34 -> 44.4 | G21: =HCl!L34 -> 4.425
A22: Sulphur dioxide | B22: Daily mean | C22: 50 mg/m3 | D22: ='SO2'!O19 -> 3.5 | E22: ='SO2'!N19 -> 0.2 | F22: ='SO2'!O34 -> 2.1 | G22: ='SO2'!N34 -> 0.1
B23: ½ hourly mean | C23: 200 mg/m3 | D23: ='SO2'!M19 -> 23.2 | E23: ='SO2'!L19 -> 0.25 | F23: ='SO2'!M34 -> 43.8 | G23: ='SO2'!L34 -> 0.1416666667
A24: Carbon monoxide | B24: Daily mean | C24: 50 mg/m3 | D24: ='CO 95% 10 min'!Q19 -> 12.1 | E24: ='CO 95% 10 min'!P19 -> 4.941666667 | F24: ='CO 95% 10 min'!Q34 -> 12.2 | G24: ='CO 95% 10 min'!P34 -> 5.3
B25: 95%ile 10-min avg * | C25: 150 mg/m3 * | D25: ='NH3'!N19 -> 0.35 | E25: ='NH3'!L19 -> 0.4 | F25: ='NH3'!M34 -> 8.8 | G25: ='NH3'!N34 -> 0.2666666667
A26: Ammonia | B26: Daily mean | C26: No limit set
A27: * = delete or amend as appropriate
A28: Comments :

Sheet HCl
A1: =+'Cover Page'!$B$29 -> Annual Performance Report 2022 | E1: =+'Cover Page'!$B$33 -> Newhaven Energy Recovery Facility
A3: Monitoring of Hydrogen Chloride emissions | D3: Whole Installation | G3: See Notes in Cell Q3 | J3: =+A3 -> Monitoring of Hydrogen Chloride emissions | N3: Per Combustion Line | Q3: Notes:
Q4: User to add logic to complete Whole installation, Table A5:G18. From the data in Per Combustion Line, Table J6:O79, subject to No. of lines installed
A5: mg/Nm3 | B5: 1/2 Hourly Reference Periods | E5: Daily Reference Periods
A6: =+'Cover Page'!C39 -> 2022 | B6: 1/2 hourly HCl ELV | C6: Monthly 1/2 hourly mean | D6: Highest 1/2 hourly maximum | E6: Daily HCl ELV | F6: Monthly daily mean | G6: Highest daily maximum | J6: =+A6 -> 2022 | K6: mg/Nm3 | L6: Monthly 1/2 hourly mean | M6: Monthly 1/2 hourly maximum | N6: Monthly daily mean | O6: Monthly daily maximum
A7: Jan | B7: 60 | C7: =(L7+L22)/2 -> 3.7 | D7: 29.15 | E7: 10 | F7: =(N7+N22)/2 -> 3.65 | G7: 5.8 | J7: A1 | K7: Jan | L7: 3.2 | M7: 13.9 | N7: 3.1 | O7: 4.8
A8: Feb | B8: 60 | C8: =(L8+L23)/2 -> 4.6 | D8: 10.85 | E8: 10 | F8: =(N8+N23)/2 -> 4.55 | G8: 5.85 | K8: Feb | L8: 4.5 | M8: 11.2 | N8: 4.5 | O8: 5.7
A9: Mar | B9: 60 | C9: =(L9+L24)/2 -> 4.9 | D9: 11.2 | E9: 10 | F9: =(N9+N24)/2 -> 4.85 | G9: 5.95 | K9: Mar | L9: 5 | M9: 13.1 | N9: 4.9 | O9: 6 | Q9: Whole Installation table A5:G18:
A10: Apr | B10: 60 | C10: =(L10+L25)/2 -> 4.75 | D10: 11.1 | E10: 10 | F10: =(N10+N25)/2 -> 4.65 | G10: 6.85 | K10: Apr | L10: 4.6 | M10: 12.1 | N10: 4.5 | O10: 7.4 | Q10: Mean: for 1/2 hourly and daily periods calculate mean of values across all operational combustion lines for the month
A11: May | B11: 60 | C11: =(L11+L26)/2 -> 4.95 | D11: 10.6 | E11: 10 | F11: =(N11+N26)/2 -> 4.9 | G11: 5.75 | K11: May | L11: 4.7 | M11: 11.5 | N11: 4.6 | O11: 5.3
A12: Jun | B12: 60 | C12: =(L12+L27)/2 -> 4.7 | D12: 8.65 | E12: 10 | F12: =(N12+N27)/2 -> 4.7 | G12: 5.65 | K12: Jun | L12: 4.2 | M12: 7.1 | N12: 4.2 | O12: 5.1
A13: Jul | B13: 60 | C13: =(L13+L28)/2 -> 5.15 | D13: 10.4 | E13: 10 | F13: =(N13+N28)/2 -> 5.05 | G13: 6.1 | K13: Jul | L13: 5 | M13: 10 | N13: 4.9 | O13: 6 | Q13: Maximum: for 1/2 hourly and daily periods use the highest value across all operational combustion lines for the month
A14: Aug | B14: 60 | C14: =(L14+L29)/2 -> 4.2 | D14: 9.35 | E14: 10 | F14: =(N14+N29)/2 -> 4.15 | G14: 5.5 | K14: Aug | L14: 4 | M14: 9.4 | N14: 3.9 | O14: 4.8
A15: Sep | B15: 60 | C15: =(L15+L30)/2 -> 4.65 | D15: 10.55 | E15: 10 | F15: =(N15+N30)/2 -> 4.65 | G15: 6.05 | K15: Sep | L15: 4.4 | M15: 10 | N15: 4.4 | O15: 5.5
A16: Oct | B16: 60 | C16: =(L16+L31)/2 -> 4.2 | D16: 12.7 | E16: 10 | F16: =(N16+N31)/2 -> 4.2 | G16: 5.3 | K16: Oct | L16: 4.2 | M16: 15.4 | N16: 4.2 | O16: 5.1
A17: Nov | B17: 60 | C17: =(L17+L32)/2 -> 3.15 | D17: 10.45 | E17: 10 | F17: =(N17+N32)/2 -> 3.05 | G17: 4.35 | K17: Nov | L17: 3.2 | M17: 11.7 | N17: 3.1 | O17: 4.2
A18: Dec | B18: 60 | C18: =(L18+L33)/2 -> 2.75 | D18: 14.55 | E18: 10 | F18: =(N18+N33)/2 -> 2.75 | G18: 5.2 | K18: Dec | L18: 3.3 | M18: 12.6 | N18: 3.3 | O18: 5.4
K19: Annual | L19: =AVERAGE(L7:L18) -> 4.191666667 | M19: =MAX(M7:M18) -> 15.4 | N19: =AVERAGE(N7:N18) -> 4.133333333 | O19: =MAX(O7:O18) -> 7.4
J21: =+A6 -> 2022 | K21: mg/Nm3 | L21: Monthly 1/2 hourly mean | M21: Monthly 1/2 hourly maximum | N21: Monthly daily mean | O21: Monthly daily maximum
J22: A2 | K22: Jan | L22: 4.2 | M22: 44.4 | N22: 4.2 | O22: 6.8
K23: Feb | L23: 4.7 | M23: 10.5 | N23: 4.6 | O23: 6
K24: Mar | L24: 4.8 | M24: 9.3 | N24: 4.8 | O24: 5.9
K25: Apr | L25: 4.9 | M25: 10.1 | N25: 4.8 | O25: 6.3
K26: May | L26: 5.2 | M26: 9.7 | N26: 5.2 | O26: 6.2
K27: Jun | L27: 5.2 | M27: 10.2 | N27: 5.2 | O27: 6.2
K28: Jul | L28: 5.3 | M28: 10.8 | N28: 5.2 | O28: 6.2
K29: Aug | L29: 4.4 | M29: 9.3 | N29: 4.4 | O29: 6.2
K30: Sep | L30: 4.9 | M30: 11.1 | N30: 4.9 | O30: 6.6
K31: Oct | L31: 4.2 | M31: 10 | N31: 4.2 | O31: 5.5
K32: Nov | L32: 3.1 | M32: 9.2 | N32: 3 | O32: 4.5
K33: Dec | L33: 2.2 | M33: 16.5 | N33: 2.2 | O33: 5
K34: Annual | L34: =AVERAGE(L22:L33) -> 4.425 | M34: =MAX(M22:M33) -> 44.4 | N34: =AVERAGE(N22:N33) -> 4.391666667 | O34: =MAX(O22:O33) -> 6.8
J36: =+A6 -> 2022 | K36: mg/Nm3 | L36: Monthly 1/2 hourly mean | M36: Monthly 1/2 hourly maximum | N36: Monthly daily mean | O36: Monthly daily maximum
J37: A3 | K37: Jan
K38: Feb
K39: Mar
K40: Apr
K41: May
K42: Jun
K43: Jul
K44: Aug
K45: Sep
K46: Oct
K47: Nov
A48: Comments : | K48: Dec
K49: Annual | L49: =AVERAGE(L37:L48) -> #DIV/0! | M49: =MAX(M37:M48) -> 0 | N49: =AVERAGE(N37:N48) -> #DIV/0! | O49: =MAX(O37:O48) -> 0
J51: =+A6 -> 2022 | K51: mg/Nm3 | L51: Monthly 1/2 hourly mean | M51: Monthly 1/2 hourly maximum | N51: Monthly daily mean | O51: Monthly daily maximum
J52: A4 | K52: Jan
K53: Feb
K54: Mar
K55: Apr
K56: May
K57: Jun
K58: Jul
K59: Aug
K60: Sep
K61: Oct
K62: Nov
K63: Dec
K64: Annual | L64: =AVERAGE(L52:L63) -> #DIV/0! | M64: =MAX(M52:M63) -> 0 | N64: =AVERAGE(N52:N63) -> #DIV/0! | O64: =MAX(O52:O63) -> 0
J66: =+A6 -> 2022 | K66: mg/Nm3 | L66: Monthly 1/2 hourly mean | M66: Monthly 1/2 hourly maximum | N66: Monthly daily mean | O66: Monthly daily maximum
J67: A5 | K67: Jan
K68: Feb
K69: Mar
K70: Apr
K71: May
K72: Jun
K73: Jul
K74: Aug
K75: Sep
K76: Oct
K77: Nov
K78: Dec
K79: Annual | L79: =AVERAGE(L67:L78) -> #DIV/0! | M79: =MAX(M67:M78) -> 0 | N79: =AVERAGE(N67:N78) -> #DIV/0! | O79: =MAX(O67:O78) -> 0

Sheet SO2
A1: =+'Cover Page'!$B$29 -> Annual Performance Report 2022 | E1: =+'Cover Page'!$B$33 -> Newhaven Energy Recovery Facility
A3: Monitoring of Sulphur dioxide emissions | D3: Whole Installation | G3: See Notes in Cell Q3 | J3: =+A3 -> Monitoring of Sulphur dioxide emissions | N3: Per Combustion Line | Q3: Notes:
Q4: User to add logic to complete Whole installation, Table A5:G18. From the data in Per Combustion Line, Table J6:O79, subject to No. of lines installed
A5: mg/Nm3 | B5: 1/2 Hourly Reference Periods | E5: Daily Reference Periods
A6: =+'Cover Page'!C39 -> 2022 | B6: 1/2 hourly SO2 ELV | C6: Monthly 1/2 hourly mean | D6: Highest 1/2 hourly maximum | E6: Daily SO2 ELV | F6: Monthly daily mean | G6: Highest daily maximum | J6: =+A6 -> 2022 | K6: mg/Nm3 | L6: Monthly 1/2 hourly mean | M6: Monthly 1/2 hourly maximum | N6: Monthly daily mean | O6: Monthly daily maximum
A7: Jan | B7: 200 | C7: =(L7+L22)/2 -> 0.15 | D7: 26.6 | E7: 50 | F7: =(N7+N22)/2 -> 0.15 | G7: 1.2 | J7: A1 | K7: Jan | L7: 0.1 | M7: 14.1 | N7: 0.1 | O7: 0.6
A8: Feb | B8: 200 | C8: =(L8+L23)/2 -> 0.2 | D8: 16.65 | E8: 50 | F8: =(N8+N23)/2 -> 0.15 | G8: 0.95 | K8: Feb | L8: 0.2 | M8: 16.5 | N8: 0.1 | O8: 0.9
A9: Mar | B9: 200 | C9: =(L9+L24)/2 -> 0.2 | D9: 13.4 | E9: 50 | F9: =(N9+N24)/2 -> 0.15 | G9: 0.8 | K9: Mar | L9: 0.2 | M9: 9.3 | N9: 0.1 | O9: 0.4 | Q9: Whole Installation table A5:G18:
A10: Apr | B10: 200 | C10: =(L10+L25)/2 -> 0.2 | D10: 12.9 | E10: 50 | F10: =(N10+N25)/2 -> 0.15 | G10: 1.65 | K10: Apr | L10: 0.3 | M10: 16 | N10: 0.2 | O10: 2.5 | Q10: Mean: for 1/2 hourly and daily periods calculate mean of values across all operational combustion lines for the month
A11: May | B11: 200 | C11: =(L11+L26)/2 -> 0.2 | D11: 26.15 | E11: 50 | F11: =(N11+N26)/2 -> 0.15 | G11: 0.8 | K11: May | L11: 0.1 | M11: 8.5 | N11: 0.1 | O11: 0.5
A12: Jun | B12: 200 | C12: =(L12+L27)/2 -> 0.1 | D12: 5.15 | E12: 50 | F12: =(N12+N27)/2 -> 0.05 | G12: 0.3 | K12: Jun | L12: 0.1 | M12: 3.9 | N12: 0.1 | O12: 0.3
A13: Jul | B13: 200 | C13: =(L13+L28)/2 -> 0.1 | D13: 8.5 | E13: 50 | F13: =(N13+N28)/2 -> 0.05 | G13: 0.35 | K13: Jul | L13: 0.1 | M13: 2.2 | N13: 0.1 | O13: 0.2 | Q13: Maximum: for 1/2 hourly and daily periods use the highest value across all operational combustion lines for the month
A14: Aug | B14: 200 | C14: =(L14+L29)/2 -> 0.15 | D14: 5.8 | E14: 50 | F14: =(N14+N29)/2 -> 0.1 | G14: 0.35 | K14: Aug | L14: 0.2 | M14: 4.3 | N14: 0.1 | O14: 0.3
A15: Sep | B15: 200 | C15: =(L15+L30)/2 -> 0.15 | D15: 7.1 | E15: 50 | F15: =(N15+N30)/2 -> 0.1 | G15: 0.5 | K15: Sep | L15: 0.2 | M15: 6.5 | N15: 0.2 | O15: 0.3
A16: Oct | B16: 200 | C16: =(L16+L31)/2 -> 0.15 | D16: 14.8 | E16: 50 | F16: =(N16+N31)/2 -> 0.1 | G16: 0.55 | K16: Oct | L16: 0.3 | M16: 23.2 | N16: 0.2 | O16: 0.9
A17: Nov | B17: 200 | C17: =(L17+L32)/2 -> 0.25 | D17: 11.9 | E17: 50 | F17: =(N17+N32)/2 -> 0.15 | G17: 0.4 | K17: Nov | L17: 0.4 | M17: 12.9 | N17: 0.3 | O17: 0.7
A18: Dec | B18: 200 | C18: =(L18+L33)/2 -> 0.5 | D18: 28.85 | E18: 50 | F18: =(N18+N33)/2 -> 0.5 | G18: 2.8 | K18: Dec | L18: 0.8 | M18: 18.4 | N18: 0.8 | O18: 3.5
K19: Annual | L19: =AVERAGE(L7:L18) -> 0.25 | M19: =MAX(M7:M18) -> 23.2 | N19: =AVERAGE(N7:N18) -> 0.2 | O19: =MAX(O7:O18) -> 3.5
J21: =+A6 -> 2022 | K21: mg/Nm3 | L21: Monthly 1/2 hourly mean | M21: Monthly 1/2 hourly maximum | N21: Monthly daily mean | O21: Monthly daily maximum
J22: A2 | K22: Jan | L22: 0.2 | M22: 39.1 | N22: 0.2 | O22: 1.8
K23: Feb | L23: 0.2 | M23: 16.8 | N23: 0.2 | O23: 1
K24: Mar | L24: 0.2 | M24: 17.5 | N24: 0.2 | O24: 1.2
K25: Apr | L25: 0.1 | M25: 9.8 | N25: 0.1 | O25: 0.8
K26: May | L26: 0.3 | M26: 43.8 | N26: 0.2 | O26: 1.1
K27: Jun | L27: 0.1 | M27: 6.4 | N27: 0 | O27: 0.3
K28: Jul | L28: 0.1 | M28: 14.8 | N28: 0 | O28: 0.5
K29: Aug | L29: 0.1 | M29: 7.3 | N29: 0.1 | O29: 0.4
K30: Sep | L30: 0.1 | M30: 7.7 | N30: 0 | O30: 0.7
K31: Oct | L31: 0 | M31: 6.4 | N31: 0 | O31: 0.2
K32: Nov | L32: 0.1 | M32: 10.9 | N32: 0 | O32: 0.1
K33: Dec | L33: 0.2 | M33: 39.3 | N33: 0.2 | O33: 2.1
K34: Annual | L34: =AVERAGE(L22:L33) -> 0.1416666667 | M34: =MAX(M22:M33) -> 43.8 | N34: =AVERAGE(N22:N33) -> 0.1 | O34: =MAX(O22:O33) -> 2.1
J36: =+A6 -> 2022 | K36: mg/Nm3 | L36: Monthly 1/2 hourly mean | M36: Monthly 1/2 hourly maximum | N36: Monthly daily mean | O36: Monthly daily maximum
J37: A3 | K37: Jan
K38: Feb
K39: Mar
K40: Apr
K41: May
K42: Jun
K43: Jul
K44: Aug
K45: Sep
K46: Oct
K47: Nov
A48: Comments : | K48: Dec
K49: Annual | L49: =AVERAGE(L37:L48) -> #DIV/0! | M49: =MAX(M37:M48) -> 0 | N49: =AVERAGE(N37:N48) -> #DIV/0! | O49: =MAX(O37:O48) -> 0
J51: =+A6 -> 2022 | K51: mg/Nm3 | L51: Monthly 1/2 hourly mean | M51: Monthly 1/2 hourly maximum | N51: Monthly daily mean | O51: Monthly daily maximum
J52: A4 | K52: Jan
K53: Feb
K54: Mar
K55: Apr
K56: May
K57: Jun
K58: Jul
K59: Aug
K60: Sep
K61: Oct
K62: Nov
K63: Dec
K64: Annual | L64: =AVERAGE(L52:L63) -> #DIV/0! | M64: =MAX(M52:M63) -> 0 | N64: =AVERAGE(N52:N63) -> #DIV/0! | O64: =MAX(O52:O63) -> 0
J66: =+A6 -> 2022 | K66: mg/Nm3 | L66: Monthly 1/2 hourly mean | M66: Monthly 1/2 hourly maximum | N66: Monthly daily mean | O66: Monthly daily maximum
J67: A5 | K67: Jan
K68: Feb
K69: Mar
K70: Apr
K71: May
K72: Jun
K73: Jul
K74: Aug
K75: Sep
K76: Oct
K77: Nov
K78: Dec
K79: Annual | L79: =AVERAGE(L67:L78) -> #DIV/0! | M79: =MAX(M67:M78) -> 0 | N79: =AVERAGE(N67:N78) -> #DIV/0! | O79: =MAX(O67:O78) -> 0

Sheet NOx
A1: =+'Cover Page'!$B$29 -> Annual Performance Report 2022 | E1: =+'Cover Page'!$B$33 -> Newhaven Energy Recovery Facility
A3: Monitoring of Oxides of Nitrogen emissions | D3: Whole Installation | G3: See Notes in Cell Q3 | J3: =+A3 -> Monitoring of Oxides of Nitrogen emissions | N3: Per Combustion Line | Q3: Notes:
Q4: User to add logic to complete Whole installation, Table A5:G18. From the data in Per Combustion Line, Table J6:O79, subject to No. of lines installed
A5: mg/Nm3 | B5: 1/2 Hourly Reference Periods | E5: Daily Reference Periods
A6: =+'Cover Page'!C39 -> 2022 | B6: 1/2 hourly NOx ELV | C6: Monthly 1/2 hourly mean | D6: Highest 1/2 hourly maximum | E6: Daily NOx ELV | F6: Monthly daily mean | G6: Highest daily maximum | J6: =+A6 -> 2022 | K6: mg/Nm3 | L6: Monthly 1/2 hourly mean | M6: Monthly 1/2 hourly maximum | N6: Monthly daily mean | O6: Monthly daily maximum
A7: Jan | B7: 400 | C7: =(L7+L22)/2 -> 150.2 | D7: 200.65 | E7: 200 | F7: =(N7+N22)/2 -> 150.15 | G7: 154.15 | J7: A1 | K7: Jan | L7: 150.1 | M7: 188.7 | N7: 150 | O7: 151.9
A8: Feb | B8: 400 | C8: =(L8+L23)/2 -> 150.05 | D8: 191.15 | E8: 200 | F8: =(N8+N23)/2 -> 150 | G8: 152.5 | K8: Feb | L8: 150 | M8: 191.7 | N8: 150 | O8: 152
A9: Mar | B9: 400 | C9: =(L9+L24)/2 -> 149.95 | D9: 191.4 | E9: 200 | F9: =(N9+N24)/2 -> 149.95 | G9: 151.05 | K9: Mar | L9: 150 | M9: 191.9 | N9: 150 | O9: 151.2 | Q9: Whole Installation table A5:G18:
A10: Apr | B10: 400 | C10: =(L10+L25)/2 -> 183.5 | D10: 237.85 | E10: 200 | F10: =(N10+N25)/2 -> 183.5 | G10: 189.05 | K10: Apr | L10: 177.5 | M10: 226.7 | N10: 177.5 | O10: 186.5 | Q10: Mean: for 1/2 hourly and daily periods calculate mean of values across all operational combustion lines for the month
A11: May | B11: 400 | C11: =(L11+L26)/2 -> 185.95 | D11: 224.4 | E11: 200 | F11: =(N11+N26)/2 -> 185.9 | G11: 189.2 | K11: May | L11: 182 | M11: 224.5 | N11: 182 | O11: 188
A12: Jun | B12: 400 | C12: =(L12+L27)/2 -> 183.85 | D12: 224.35 | E12: 200 | F12: =(N12+N27)/2 -> 183.85 | G12: 186.95 | K12: Jun | L12: 177.8 | M12: 223.9 | N12: 177.9 | O12: 183.3
A13: Jul | B13: 400 | C13: =(L13+L28)/2 -> 183.9 | D13: 222.65 | E13: 200 | F13: =(N13+N28)/2 -> 183.9 | G13: 188.1 | K13: Jul | L13: 177.7 | M13: 216.5 | N13: 177.7 | O13: 185.2 | Q13: Maximum: for 1/2 hourly and daily periods use the highest value across all operational combustion lines for the month
A14: Aug | B14: 400 | C14: =(L14+L29)/2 -> 180.15 | D14: 213.3 | E14: 200 | F14: =(N14+N29)/2 -> 180.3 | G14: 186.65 | K14: Aug | L14: 170.8 | M14: 201.6 | N14: 171.1 | O14: 182.2
A15: Sep | B15: 400 | C15: =(L15+L30)/2 -> 179.55 | D15: 236.8 | E15: 200 | F15: =(N15+N30)/2 -> 179.6 | G15: 184.7 | K15: Sep | L15: 169.6 | M15: 209.9 | N15: 169.7 | O15: 176.7
A16: Oct | B16: 400 | C16: =(L16+L31)/2 -> 179.05 | D16: 221.4 | E16: 200 | F16: =(N16+N31)/2 -> 179 | G16: 188.5 | K16: Oct | L16: 168.6 | M16: 217.9 | N16: 168.6 | O16: 186.4
A17: Nov | B17: 400 | C17: =(L17+L32)/2 -> 185.8 | D17: 229.65 | E17: 200 | F17: =(N17+N32)/2 -> 185.7 | G17: 189.45 | K17: Nov | L17: 181.5 | M17: 224 | N17: 181.5 | O17: 186.8
A18: Dec | B18: 400 | C18: =(L18+L33)/2 -> 176.1 | D18: 230.3 | E18: 200 | F18: =(N18+N33)/2 -> 176.45 | G18: 189.8 | K18: Dec | L18: 162.4 | M18: 231.5 | N18: 163.2 | O18: 188.7
K19: Annual | L19: =AVERAGE(L7:L18) -> 168.1666667 | M19: =MAX(M7:M18) -> 231.5 | N19: =AVERAGE(N7:N18) -> 168.2666667 | O19: =MAX(O7:O18) -> 188.7
J21: =+A6 -> 2022 | K21: mg/Nm3 | L21: Monthly 1/2 hourly mean | M21: Monthly 1/2 hourly maximum | N21: Monthly daily mean | O21: Monthly daily maximum
J22: A2 | K22: Jan | L22: 150.3 | M22: 212.6 | N22: 150.3 | O22: 156.4
K23: Feb | L23: 150.1 | M23: 190.6 | N23: 150 | O23: 153
K24: Mar | L24: 149.9 | M24: 190.9 | N24: 149.9 | O24: 150.9
K25: Apr | L25: 189.5 | M25: 249 | N25: 189.5 | O25: 191.6
K26: May | L26: 189.9 | M26: 224.3 | N26: 189.8 | O26: 190.4
K27: Jun | L27: 189.9 | M27: 224.8 | N27: 189.8 | O27: 190.6
K28: Jul | L28: 190.1 | M28: 228.8 | N28: 190.1 | O28: 191
K29: Aug | L29: 189.5 | M29: 225 | N29: 189.5 | O29: 191.1
K30: Sep | L30: 189.5 | M30: 263.7 | N30: 189.5 | O30: 192.7
K31: Oct | L31: 189.5 | M31: 224.9 | N31: 189.4 | O31: 190.6
K32: Nov | L32: 190.1 | M32: 235.3 | N32: 189.9 | O32: 192.1
K33: Dec | L33: 189.8 | M33: 229.1 | N33: 189.7 | O33: 190.9
K34: Annual | L34: =AVERAGE(L22:L33) -> 179.8416667 | M34: =MAX(M22:M33) -> 263.7 | N34: =AVERAGE(N22:N33) -> 179.7833333 | O34: =MAX(O22:O33) -> 192.7
J36: =+A6 -> 2022 | K36: mg/Nm3 | L36: Monthly 1/2 hourly mean | M36: Monthly 1/2 hourly maximum | N36: Monthly daily mean | O36: Monthly daily maximum
J37: A3 | K37: Jan
K38: Feb
K39: Mar
K40: Apr
K41: May
K42: Jun
K43: Jul
K44: Aug
K45: Sep
K46: Oct
K47: Nov
A48: Comments : | K48: Dec
K49: Annual | L49: =AVERAGE(L37:L48) -> #DIV/0! | M49: =MAX(M37:M48) -> 0 | N49: =AVERAGE(N37:N48) -> #DIV/0! | O49: =MAX(O37:O48) -> 0
J51: =+A6 -> 2022 | K51: mg/Nm3 | L51: Monthly 1/2 hourly mean | M51: Monthly 1/2 hourly maximum | N51: Monthly daily mean | O51: Monthly daily maximum
J52: A4 | K52: Jan
K53: Feb
K54: Mar
K55: Apr
K56: May
K57: Jun
K58: Jul
K59: Aug
K60: Sep
K61: Oct
K62: Nov
K63: Dec
K64: Annual | L64: =AVERAGE(L52:L63) -> #DIV/0! | M64: =MAX(M52:M63) -> 0 | N64: =AVERAGE(N52:N63) -> #DIV/0! | O64: =MAX(O52:O63) -> 0
J66: =+A6 -> 2022 | K66: mg/Nm3 | L66: Monthly 1/2 hourly mean | M66: Monthly 1/2 hourly maximum | N66: Monthly daily mean | O66: Monthly daily maximum
J67: A5 | K67: Jan
K68: Feb
K69: Mar
K70: Apr
K71: May
K72: Jun
K73: Jul
K74: Aug
K75: Sep
K76: Oct
K77: Nov
K78: Dec
K79: Annual | L79: =AVERAGE(L67:L78) -> #DIV/0! | M79: =MAX(M67:M78) -> 0 | N79: =AVERAGE(N67:N78) -> #DIV/0! | O79: =MAX(O67:O78) -> 0

Sheet TOC
A1: =+'Cover Page'!$B$29 -> Annual Performance Report 2022 | E1: =+'Cover Page'!$B$33 -> Newhaven Energy Recovery Facility
A3: Monitoring of Total organic carbon emissions | D3: Whole Installation | G3: See Notes in Cell Q3 | J3: =+A3 -> Monitoring of Total organic carbon emissions | N3: Per Combustion Line | Q3: Notes:
Q4: User to add logic to complete Whole installation, Table A5:G18. From the data in Per Combustion Line, Table J6:O79, subject to No. of lines installed
A5: mg/Nm3 | B5: 1/2 Hourly Reference Periods | E5: Daily Reference Periods
A6: =+'Cover Page'!C39 -> 2022 | B6: 1/2 hourly TOC ELV | C6: Monthly 1/2 hourly mean | D6: Highest 1/2 hourly maximum | E6: Daily TOC ELV | F6: Monthly daily mean | G6: Highest daily maximum | J6: =+A6 -> 2022 | K6: mg/Nm3 | L6: Monthly 1/2 hourly mean | M6: Monthly 1/2 hourly maximum | N6: Monthly daily mean | O6: Monthly daily maximum
A7: Jan | B7: 20 | C7: =(L7+L22)/2 -> 0.25 | D7: 4.6 | E7: 10 | F7: =(N7+N22)/2 -> 0.2 | G7: 0.7 | J7: A1 | K7: Jan | L7: 0.3 | M7: 5.8 | N7: 0.3 | O7: 1
A8: Feb | B8: 20 | C8: =(L8+L23)/2 -> 0.25 | D8: 4.2 | E8: 10 | F8: =(N8+N23)/2 -> 0.25 | G8: 0.55 | K8: Feb | L8: 0.3 | M8: 5.3 | N8: 0.3 | O8: 0.7
A9: Mar | B9: 20 | C9: =(L9+L24)/2 -> 0.25 | D9: 4.75 | E9: 10 | F9: =(N9+N24)/2 -> 0.25 | G9: 0.4 | K9: Mar | L9: 0.3 | M9: 3.8 | N9: 0.3 | O9: 0.4 | Q9: Whole Installation table A5:G18:
A10: Apr | B10: 20 | C10: =(L10+L25)/2 -> 0.25 | D10: 3.25 | E10: 10 | F10: =(N10+N25)/2 -> 0.25 | G10: 0.4 | K10: Apr | L10: 0.3 | M10: 2.1 | N10: 0.3 | O10: 0.4 | Q10: Mean: for 1/2 hourly and daily periods calculate mean of values across all operational combustion lines for the month
A11: May | B11: 20 | C11: =(L11+L26)/2 -> 0.25 | D11: 4.6 | E11: 10 | F11: =(N11+N26)/2 -> 0.2 | G11: 0.35 | K11: May | L11: 0.3 | M11: 4 | N11: 0.2 | O11: 0.4
A12: Jun | B12: 20 | C12: =(L12+L27)/2 -> 0.25 | D12: 6.25 | E12: 10 | F12: =(N12+N27)/2 -> 0.25 | G12: 0.4 | K12: Jun | L12: 0.3 | M12: 5.6 | N12: 0.3 | O12: 0.4
A13: Jul | B13: 20 | C13: =(L13+L28)/2 -> 0.25 | D13: 3.9 | E13: 10 | F13: =(N13+N28)/2 -> 0.2 | G13: 0.4 | K13: Jul | L13: 0.3 | M13: 4.2 | N13: 0.2 | O13: 0.5 | Q13: Maximum: for 1/2 hourly and daily periods use the highest value across all operational combustion lines for the month
A14: Aug | B14: 20 | C14: =(L14+L29)/2 -> 0.35 | D14: 7.6 | E14: 10 | F14: =(N14+N29)/2 -> 0.3 | G14: 0.6 | K14: Aug | L14: 0.4 | M14: 10.1 | N14: 0.4 | O14: 0.7
A15: Sep | B15: 20 | C15: =(L15+L30)/2 -> 0.3 | D15: 9.3 | E15: 10 | F15: =(N15+N30)/2 -> 0.3 | G15: 0.55 | K15: Sep | L15: 0.4 | M15: 13.8 | N15: 0.4 | O15: 0.7
A16: Oct | B16: 20 | C16: =(L16+L31)/2 -> 0.3 | D16: 4.05 | E16: 10 | F16: =(N16+N31)/2 -> 0.25 | G16: 0.4 | K16: Oct | L16: 0.4 | M16: 4.9 | N16: 0.3 | O16: 0.5
A17: Nov | B17: 20 | C17: =(L17+L32)/2 -> 0.25 | D17: 5.35 | E17: 10 | F17: =(N17+N32)/2 -> 0.25 | G17: 0.45 | K17: Nov | L17: 0.3 | M17: 7.7 | N17: 0.3 | O17: 0.6
A18: Dec | B18: 20 | C18: =(L18+L33)/2 -> 0.25 | D18: 4.65 | E18: 10 | F18: =(N18+N33)/2 -> 0.25 | G18: 0.4 | K18: Dec | L18: 0.3 | M18: 6.5 | N18: 0.3 | O18: 0.5
K19: Annual | L19: =AVERAGE(L7:L18) -> 0.325 | M19: =MAX(M7:M18) -> 13.8 | N19: =AVERAGE(N7:N18) -> 0.3 | O19: =MAX(O7:O18) -> 1
J21: =+A6 -> 2022 | K21: mg/Nm3 | L21: Monthly 1/2 hourly mean | M21: Monthly 1/2 hourly maximum | N21: Monthly daily mean | O21: Monthly daily maximum
J22: A2 | K22: Jan | L22: 0.2 | M22: 3.4 | N22: 0.1 | O22: 0.4
K23: Feb | L23: 0.2 | M23: 3.1 | N23: 0.2 | O23: 0.4
K24: Mar | L24: 0.2 | M24: 5.7 | N24: 0.2 | O24: 0.4
K25: Apr | L25: 0.2 | M25: 4.4 | N25: 0.2 | O25: 0.4
K26: May | L26: 0.2 | M26: 5.2 | N26: 0.2 | O26: 0.3
K27: Jun | L27: 0.2 | M27: 6.9 | N27: 0.2 | O27: 0.4
K28: Jul | L28: 0.2 | M28: 3.6 | N28: 0.2 | O28: 0.3
K29: Aug | L29: 0.3 | M29: 5.1 | N29: 0.2 | O29: 0.5
K30: Sep | L30: 0.2 | M30: 4.8 | N30: 0.2 | O30: 0.4
K31: Oct | L31: 0.2 | M31: 3.2 | N31: 0.2 | O31: 0.3
K32: Nov | L32: 0.2 | M32: 3 | N32: 0.2 | O32: 0.3
K33: Dec | L33: 0.2 | M33: 2.8 | N33: 0.2 | O33: 0.3
K34: Annual | L34: =AVERAGE(L22:L33) -> 0.2083333333 | M34: =MAX(M22:M33) -> 6.9 | N34: =AVERAGE(N22:N33) -> 0.1916666667 | O34: =MAX(O22:O33) -> 0.5
J36: =+A6 -> 2022 | K36: mg/Nm3 | L36: Monthly 1/2 hourly mean | M36: Monthly 1/2 hourly maximum | N36: Monthly daily mean | O36: Monthly daily maximum
J37: A3 | K37: Jan
K38: Feb
K39: Mar
K40: Apr
K41: May
K42: Jun
K43: Jul
K44: Aug
K45: Sep
K46: Oct
K47: Nov
A48: Comments : | K48: Dec
K49: Annual | L49: =AVERAGE(L37:L48) -> #DIV/0! | M49: =MAX(M37:M48) -> 0 | N49: =AVERAGE(N37:N48) -> #DIV/0! | O49: =MAX(O37:O48) -> 0
J51: =+A6 -> 2022 | K51: mg/Nm3 | L51: Monthly 1/2 hourly mean | M51: Monthly 1/2 hourly maximum | N51: Monthly daily mean | O51: Monthly daily maximum
J52: A4 | K52: Jan
K53: Feb
K54: Mar
K55: Apr
K56: May
K57: Jun
K58: Jul
K59: Aug
K60: Sep
K61: Oct
K62: Nov
K63: Dec
K64: Annual | L64: =AVERAGE(L52:L63) -> #DIV/0! | M64: =MAX(M52:M63) -> 0 | N64: =AVERAGE(N52:N63) -> #DIV/0! | O64: =MAX(O52:O63) -> 0
J66: =+A6 -> 2022 | K66: mg/Nm3 | L66: Monthly 1/2 hourly mean | M66: Monthly 1/2 hourly maximum | N66: Monthly daily mean | O66: Monthly daily maximum
J67: A5 | K67: Jan
K68: Feb
K69: Mar
K70: Apr
K71: May
K72: Jun
K73: Jul
K74: Aug
K75: Sep
K76: Oct
K77: Nov
K78: Dec
K79: Annual | L79: =AVERAGE(L67:L78) -> #DIV/0! | M79: =MAX(M67:M78) -> 0 | N79: =AVERAGE(N67:N78) -> #DIV/0! | O79: =MAX(O67:O78) -> 0

Sheet Particulates
A1: =+'Cover Page'!$B$29 -> Annual Performance Report 2022 | E1: =+'Cover Page'!$B$33 -> Newhaven Energy Recovery Facility
A3: Monitoring of Particulate matter emissions | D3: Whole Installation | G3: See Notes in Cell Q3 | J3: =+A3 -> Monitoring of Particulate matter emissions | N3: Per Combustion Line | Q3: Notes:
Q4: User to add logic to complete Whole installation, Table A5:G18. From the data in Per Combustion Line, Table J6:O79, subject to No. of lines installed
A5: mg/Nm3 | B5: 1/2 Hourly Reference Periods | E5: Daily Reference Periods
A6: =+'Cover Page'!C39 -> 2022 | B6: 1/2 hourly PM ELV | C6: Monthly 1/2 hourly mean | D6: Highest 1/2 hourly maximum | E6: Daily PM ELV | F6: Monthly daily mean | G6: Highest daily maximum | J6: =+A6 -> 2022 | K6: mg/Nm3 | L6: Monthly 1/2 hourly mean | M6: Monthly 1/2 hourly maximum | N6: Monthly daily mean | O6: Monthly daily maximum
A7: Jan | B7: 30 | C7: =(L7+L22)/2 -> 2.45 | D7: 7.3 | E7: 10 | F7: =(N7+N22)/2 -> 2.45 | G7: 3.85 | J7: A1 | K7: Jan | L7: 4.1 | M7: 12.7 | N7: 4.1 | O7: 6.7
A8: Feb | B8: 30 | C8: =(L8+L23)/2 -> 2.2 | D8: 5.35 | E8: 10 | F8: =(N8+N23)/2 -> 2.15 | G8: 3.25 | K8: Feb | L8: 3.5 | M8: 9.1 | N8: 3.5 | O8: 5.3
A9: Mar | B9: 30 | C9: =(L9+L24)/2 -> 1.85 | D9: 4.55 | E9: 10 | F9: =(N9+N24)/2 -> 1.8 | G9: 2.65 | K9: Mar | L9: 2.9 | M9: 5.3 | N9: 2.8 | O9: 4.2 | Q9: Whole Installation table A5:G18:
A10: Apr | B10: 30 | C10: =(L10+L25)/2 -> 2.7 | D10: 7.35 | E10: 10 | F10: =(N10+N25)/2 -> 2.65 | G10: 4.8 | K10: Apr | L10: 4.1 | M10: 9.3 | N10: 4 | O10: 5.8 | Q10: Mean: for 1/2 hourly and daily periods calculate mean of values across all operational combustion lines for the month
A11: May | B11: 30 | C11: =(L11+L26)/2 -> 2.65 | D11: 7.2 | E11: 10 | F11: =(N11+N26)/2 -> 2.6 | G11: 4.45 | K11: May | L11: 4.4 | M11: 9.1 | N11: 4.3 | O11: 5.5
A12: Jun | B12: 30 | C12: =(L12+L27)/2 -> 2.9 | D12: 5.2 | E12: 10 | F12: =(N12+N27)/2 -> 2.9 | G12: 3.7 | K12: Jun | L12: 5 | M12: 8.7 | N12: 5 | O12: 6.3
A13: Jul | B13: 30 | C13: =(L13+L28)/2 -> 3 | D13: 9.05 | E13: 10 | F13: =(N13+N28)/2 -> 3 | G13: 4.25 | K13: Jul | L13: 5 | M13: 14 | N13: 5 | O13: 6.9 | Q13: Maximum: for 1/2 hourly and daily periods use the highest value across all operational combustion lines for the month
A14: Aug | B14: 30 | C14: =(L14+L29)/2 -> 3.25 | D14: 16.5 | E14: 10 | F14: =(N14+N29)/2 -> 3.25 | G14: 5.5 | K14: Aug | L14: 5.1 | M14: 22 | N14: 5.1 | O14: 8
A15: Sep | B15: 30 | C15: =(L15+L30)/2 -> 2.5 | D15: 5.05 | E15: 10 | F15: =(N15+N30)/2 -> 2.45 | G15: 3.5 | K15: Sep | L15: 3.6 | M15: 7.2 | N15: 3.5 | O15: 4.9
A16: Oct | B16: 30 | C16: =(L16+L31)/2 -> 3 | D16: 11.8 | E16: 10 | F16: =(N16+N31)/2 -> 2.95 | G16: 4.1 | K16: Oct | L16: 4.2 | M16: 12.3 | N16: 4.2 | O16: 5.8
A17: Nov | B17: 30 | C17: =(L17+L32)/2 -> 3.75 | D17: 17.2 | E17: 10 | F17: =(N17+N32)/2 -> 3.7 | G17: 5.55 | K17: Nov | L17: 5.9 | M17: 17.2 | N17: 5.8 | O17: 8.4
A18: Dec | B18: 30 | C18: 4.45 | D18: =(M18+M33)/2 -> 8.25 | E18: 10 | F18: =(N18+N33)/2 -> 4.45 | G18: 5.5 | K18: Dec | L18: 6.8 | M18: 11.7 | N18: 6.8 | O18: 8.3
K19: Annual | L19: =AVERAGE(L7:L18) -> 4.55 | M19: =MAX(M7:M18) -> 22 | N19: =AVERAGE(N7:N18) -> 4.508333333 | O19: =MAX(O7:O18) -> 8.4
J21: =+A6 -> 2022 | K21: mg/Nm3 | L21: Monthly 1/2 hourly mean | M21: Monthly 1/2 hourly maximum | N21: Monthly daily mean | O21: Monthly daily maximum
J22: A2 | K22: Jan | L22: 0.8 | M22: 1.9 | N22: 0.8 | O22: 1
K23: Feb | L23: 0.9 | M23: 1.6 | N23: 0.8 | O23: 1.2
K24: Mar | L24: 0.8 | M24: 3.8 | N24: 0.8 | O24: 1.1
K25: Apr | L25: 1.3 | M25: 5.4 | N25: 1.3 | O25: 3.8
K26: May | L26: 0.9 | M26: 5.3 | N26: 0.9 | O26: 3.4
K27: Jun | L27: 0.8 | M27: 1.7 | N27: 0.8 | O27: 1.1
K28: Jul | L28: 1 | M28: 4.1 | N28: 1 | O28: 1.6
K29: Aug | L29: 1.4 | M29: 11 | N29: 1.4 | O29: 3
K30: Sep | L30: 1.4 | M30: 2.9 | N30: 1.4 | O30: 2.1
K31: Oct | L31: 1.8 | M31: 11.3 | N31: 1.7 | O31: 2.4
K32: Nov | L32: 1.6 | M32: 3.4 | N32: 1.6 | O32: 2.7
K33: Dec | L33: 2.1 | M33: 4.8 | N33: 2.1 | O33: 2.7
K34: Annual | L34: =AVERAGE(L22:L33) -> 1.233333333 | M34: =MAX(M22:M33) -> 11.3 | N34: =AVERAGE(N22:N33) -> 1.216666667 | O34: =MAX(O22:O33) -> 3.8
J36: =+A6 -> 2022 | K36: mg/Nm3 | L36: Monthly 1/2 hourly mean | M36: Monthly 1/2 hourly maximum | N36: Monthly daily mean | O36: Monthly daily maximum
J37: A3 | K37: Jan
K38: Feb
K39: Mar
K40: Apr
K41: May
K42: Jun
K43: Jul
K44: Aug
K45: Sep
K46: Oct
K47: Nov
A48: Comments : | K48: Dec
K49: Annual | L49: =AVERAGE(L37:L48) -> #DIV/0! | M49: =MAX(M37:M48) -> 0 | N49: =AVERAGE(N37:N48) -> #DIV/0! | O49: =MAX(O37:O48) -> 0
J51: =+A6 -> 2022 | K51: mg/Nm3 | L51: Monthly 1/2 hourly mean | M51: Monthly 1/2 hourly maximum | N51: Monthly daily mean | O51: Monthly daily maximum
J52: A4 | K52: Jan
K53: Feb
K54: Mar
K55: Apr
K56: May
K57: Jun
K58: Jul
K59: Aug
K60: Sep
K61: Oct
K62: Nov
K63: Dec
K64: Annual | L64: =AVERAGE(L52:L63) -> #DIV/0! | M64: =MAX(M52:M63) -> 0 | N64: =AVERAGE(N52:N63) -> #DIV/0! | O64: =MAX(O52:O63) -> 0
J66: =+A6 -> 2022 | K66: mg/Nm3 | L66: Monthly 1/2 hourly mean | M66: Monthly 1/2 hourly maximum | N66: Monthly daily mean | O66: Monthly daily maximum
J67: A5 | K67: Jan
K68: Feb
K69: Mar
K70: Apr
K71: May
K72: Jun
K73: Jul
K74: Aug
K75: Sep
K76: Oct
K77: Nov
K78: Dec
K79: Annual | L79: =AVERAGE(L67:L78) -> #DIV/0! | M79: =MAX(M67:M78) -> 0 | N79: =AVERAGE(N67:N78) -> #DIV/0! | O79: =MAX(O67:O78) -> 0

Sheet CO 95% 10 min
A1: =+'Cover Page'!$B$29 -> Annual Performance Report 2022 | E1: =+'Cover Page'!$B$33 -> Newhaven Energy Recovery Facility
A3: Monitoring of Carbon Monoxide (10-minute avg) | E3: Whole Installation | H3: See Notes in Cell S3 | J3: =+A3 -> Monitoring of Carbon Monoxide (10-minute avg) | O3: Per Combustion Line | Q3: Notes: | S3: Notes:
S4: User to add logic to complete Whole installation, Table A5:H18. From the data in Per Combustion Line, Table K6:Q79, subject to No. of lines installed
A5: mg/Nm3 | B5: 10-minute Reference Periods | F5: Daily Reference Periods
A6: =+'Cover Page'!C39 -> 2022 | B6: 95%ile 10-min avg CO ELV | C6: 95%ile 10-min avg maximum | D6: Monthly CO 10-min avg mean | E6: 10-min avg maximum | F6: Daily CO ELV | G6: Monthly daily mean | H6: Highest daily maximum | K6: =+A6 -> 2022 | L6: mg/Nm3 | M6: 95%ile 10-min avg maximum | N6: Monthly CO 10-min avg mean | O6: 10-min avg maximum | P6: Monthly daily mean | Q6: Monthly daily maximum
A7: Jan | B7: 150 | C7: =(M7+M22)/2 -> 16.75 | D7: 6.15 | E7: 172.9 | F7: 50 | G7: =(P7+P22)/2 -> 6.1 | H7: 9.35 | K7: A1 | L7: Jan | M7: 18 | N7: 6.3 | O7: 246.3 | P7: 6.2 | Q7: 9.2
A8: Feb | B8: =+B7 -> 150 | C8: =(M8+M23)/2 -> 17.25 | D8: 5.15 | E8: 142 | F8: =+F7 -> 50 | G8: =(P8+P23)/2 -> 5.1 | H8: 8.3 | L8: Feb | M8: 20.4 | N8: 5.1 | O8: 227.7 | P8: 5 | Q8: 8
A9: Mar | B9: 150 | C9: =(M9+M24)/2 -> 14 | D9: 5.55 | E9: 204.6 | F9: 50 | G9: =(P9+P24)/2 -> 5.5 | H9: 8.65 | L9: Mar | M9: 11 | N9: 5 | O9: 184.8 | P9: 5 | Q9: 7.4 | S9: Whole Installation table A5:H18:
A10: Apr | B10: 150 | C10: =(M10+M25)/2 -> 18.4 | D10: 6.25 | E10: 255.05 | F10: 50 | G10: =(P10+P25)/2 -> 6.2 | H10: 12.15 | L10: Apr | M10: 19.3 | N10: 6.2 | O10: 209.4 | P10: 6.1 | Q10: 12.1 | S10: Mean: for 10-min and daily periods use average of all operational combustion lines.
A11: May | B11: 150 | C11: =(M11+M26)/2 -> 12.2 | D11: 4.9 | E11: 306.5 | F11: 50 | G11: =(P11+P26)/2 -> 4.85 | H11: 8.4 | L11: May | M11: 10.4 | N11: 4.4 | O11: 235.1 | P11: 4.4 | Q11: 6.7
A12: Jun | B12: 150 | C12: =(M12+M27)/2 -> 13.2 | D12: 5.25 | E12: 339.75 | F12: 50 | G12: =(P12+P27)/2 -> 5.2 | H12: 9.4 | L12: Jun | M12: 11.4 | N12: 4.6 | O12: 136.9 | P12: 4.6 | Q12: 7.4
A13: Jul | B13: 150 | C13: =(M13+M28)/2 -> 12.15 | D13: 3.9 | E13: 139.9 | F13: 50 | G13: =(P13+P28)/2 -> 3.85 | H13: 7.25 | L13: Jul | M13: 11.5 | N13: 3.5 | O13: 154.6 | P13: 3.4 | Q13: 7.8 | S13: Maximum: for 10-min and daily periods use the highest of all operational combustion lines in any month.
A14: Aug | B14: 150 | C14: =(M14+M29)/2 -> 25 | D14: 4.05 | E14: 322.1 | F14: 50 | G14: =(P14+P29)/2 -> 4 | H14: 6.65 | L14: Aug | M14: 38 | N14: 4.1 | O14: 426.5 | P14: 4.1 | Q14: 7.1
A15: Sep | B15: 150 | C15: =(M15+M30)/2 -> 13.05 | D15: 4.35 | E15: 560.45 | F15: 50 | G15: =(P15+P30)/2 -> 4.35 | H15: 9.05 | L15: Sep | M15: 14.3 | N15: 4.4 | O15: 626 | P15: 4.4 | Q15: 10.4
A16: Oct | B16: 150 | C16: =(M16+M31)/2 -> 14.55 | D16: 4.9 | E16: 183.3 | F16: 50 | G16: =(P16+P31)/2 -> 4.9 | H16: 7.9 | L16: Oct | M16: 15.6 | N16: 4.5 | O16: 177.3 | P16: 4.5 | Q16: 7.7
A17: Nov | B17: 150 | C17: =(M17+M32)/2 -> 14.1 | D17: 5.25 | E17: 142.65 | F17: 50 | G17: =(P17+P32)/2 -> 5.3 | H17: 8 | L17: Nov | M17: 14.6 | N17: 4.8 | O17: 102.6 | P17: 4.9 | Q17: 7.6
A18: Dec | B18: 150 | C18: =(M18+M33)/2 -> 22.75 | D18: 6.15 | E18: 218.5 | F18: 50 | G18: =(P18+P33)/2 -> 6.1 | H18: 9.2 | L18: Dec | M18: 32.3 | N18: 6.7 | O18: 250.4 | P18: 6.7 | Q18: 10.2
L19: Annual | M19: =AVERAGE(M7:M18) -> 18.06666667 | O19: =MAX(O7:O18) -> 626 | P19: =AVERAGE(P7:P18) -> 4.941666667 | Q19: =MAX(Q7:Q18) -> 12.1
K21: =+A6 -> 2022 | L21: mg/Nm3 | M21: 95%ile 10-min avg maximum | N21: Monthly CO 10-min avg mean | O21: 10-min avg maximum | P21: Monthly daily mean | Q21: Monthly daily maximum
K22: A2 | L22: Jan | M22: 15.5 | N22: 6 | O22: 99.5 | P22: 6 | Q22: 9.5
L23: Feb | M23: 14.1 | N23: 5.2 | O23: 56.3 | P23: 5.2 | Q23: 8.6
L24: Mar | M24: 17 | N24: 6.1 | O24: 224.4 | P24: 6 | Q24: 9.9
L25: Apr | M25: 17.5 | N25: 6.3 | O25: 300.7 | P25: 6.3 | Q25: 12.2
L26: May | M26: 14 | N26: 5.4 | O26: 377.9 | P26: 5.3 | Q26: 10.1
L27: Jun | M27: 15 | N27: 5.9 | O27: 542.6 | P27: 5.8 | Q27: 11.4
L28: Jul | M28: 12.8 | N28: 4.3 | O28: 125.2 | P28: 4.3 | Q28: 6.7
L29: Aug | M29: 12 | N29: 4 | O29: 217.7 | P29: 3.9 | Q29: 6.2
L30: Sep | M30: 11.8 | N30: 4.3 | O30: 494.9 | P30: 4.3 | Q30: 7.7
L31: Oct | M31: 13.5 | N31: 5.3 | O31: 189.3 | P31: 5.3 | Q31: 8.1
L32: Nov | M32: 13.6 | N32: 5.7 | O32: 182.7 | P32: 5.7 | Q32: 8.4
L33: Dec | M33: 13.2 | N33: 5.6 | O33: 186.6 | P33: 5.5 | Q33: 8.2
L34: Annual | M34: =AVERAGE(M22:M33) -> 14.16666667 | O34: =MAX(O22:O33) -> 542.6 | P34: =AVERAGE(P22:P33) -> 5.3 | Q34: =MAX(Q22:Q33) -> 12.2
K36: =+A6 -> 2022 | L36: mg/Nm3 | M36: 95%ile 10-min avg maximum | N36: Monthly CO 10-min avg mean | O36: 10-min avg maximum | P36: Monthly daily mean | Q36: Monthly daily maximum
K37: A3 | L37: Jan
L38: Feb
L39: Mar
L40: Apr
L41: May
L42: Jun
L43: Jul
L44: Aug
L45: Sep
L46: Oct
L47: Nov
A48: Comments : | L48: Dec
A49: Environment Agency explanatory note: The 10-minute average ELV is based on the “95th percentile”. In this case this means that 95% of the 10 minute averages in the relevant 24-hour period (i.e. 137) must be below 150 mg/Nm3, and 5% (i.e. 7) are allowed to be any value above 150 mg/Nm3. Whilst we expect operators to minimise CO emissions at all times, it is perfectly acceptable for the value of the maximum 10-minute average to be above 150 mg/Nm3, provided the 95th percentile ELV has been met for that period. | L49: Annual | M49: =AVERAGE(M37:M48) -> #DIV/0! | O49: =MAX(O37:O48) -> 0 | P49: =AVERAGE(P37:P48) -> #DIV/0! | Q49: =MAX(Q37:Q48) -> 0
K51: =+A6 -> 2022 | L51: mg/Nm3 | M51: 95%ile 10-min avg maximum | N51: Monthly CO 10-min avg mean | O51: 10-min avg maximum | P51: Monthly daily mean | Q51: Monthly daily maximum
K52: A4 | L52: Jan
L53: Feb
L54: Mar
L55: Apr
L56: May
L57: Jun
L58: Jul
L59: Aug
L60: Sep
L61: Oct
L62: Nov
L63: Dec
L64: Annual | M64: =AVERAGE(M52:M63) -> #DIV/0! | O64: =MAX(O52:O63) -> 0 | P64: =AVERAGE(P52:P63) -> #DIV/0! | Q64: =MAX(Q52:Q63) -> 0
K66: =+A6 -> 2022 | L66: mg/Nm3 | M66: 95%ile 10-min avg maximum | N66: Monthly CO 10-min avg mean | O66: 10-min avg maximum | P66: Monthly daily mean | Q66: Monthly daily maximum
K67: A5 | L67: Jan
L68: Feb
L69: Mar
L70: Apr
L71: May
L72: Jun
L73: Jul
L74: Aug
L75: Sep
L76: Oct
L77: Nov
L78: Dec
L79: Annual | M79: =AVERAGE(M67:M78) -> #DIV/0! | O79: =MAX(O67:O78) -> 0 | P79: =AVERAGE(P67:P78) -> #DIV/0! | Q79: =MAX(Q67:Q78) -> 0

Sheet NH3
A1: =+'Cover Page'!$B$29 -> Annual Performance Report 2022 | E1: =+'Cover Page'!$B$33 -> Newhaven Energy Recovery Facility
A3: Monitoring of Ammnonia emissions | D3: Whole Installation | G3: See Notes in Cell Q3 | J3: =+A3 -> Monitoring of Ammnonia emissions | N3: Per Combustion Line | Q3: Notes:
Q4: User to add logic to complete Whole installation, Table A5:G18. From the data in Per Combustion Line, Table J6:O79, subject to No. of lines installed
A5: mg/Nm3 | B5: 1/2 Hourly Reference Periods | E5: Daily Reference Periods
A6: =+'Cover Page'!C39 -> 2022 | B6: 1/2 hourly NH3 ELV | C6: Monthly 1/2 hourly mean | D6: Highest 1/2 hourly maximum | E6: Daily NH3 ELV | F6: Monthly daily mean | G6: Highest daily maximum | J6: =+A6 -> 2022 | K6: mg/Nm3 | L6: Monthly 1/2 hourly mean | M6: Monthly 1/2 hourly maximum | N6: Monthly daily mean | O6: Monthly daily maximum
A7: Jan | B7: 0 | C7: =(L7+L22)/2 -> 0.4 | D7: 1.2 | E7: 15 | F7: =(N7+N22)/2 -> 0.35 | G7: 0.55 | J7: A1 | K7: Jan | L7: 0.4 | M7: 1.5 | N7: 0.4 | O7: 0.6
A8: Feb | B8: =+B7 -> 0 | C8: =(L8+L23)/2 -> 0.35 | D8: 1 | E8: =+E7 -> 15 | F8: =(N8+N23)/2 -> 0.3 | G8: 0.6 | K8: Feb | L8: 0.4 | M8: 0.9 | N8: 0.3 | O8: 0.5
A9: Mar | B9: 0 | C9: =(L9+L24)/2 -> 0.4 | D9: 4.45 | E9: 15 | F9: =(N9+N24)/2 -> 0.35 | G9: 0.85 | K9: Mar | L9: 0.4 | M9: 8.1 | N9: 0.4 | O9: 1.2 | Q9: Whole Installation table A5:G18:
A10: Apr | B10: 0 | C10: =(L10+L25)/2 -> 0.35 | D10: 1.8 | E10: 15 | F10: =(N10+N25)/2 -> 0.3 | G10: 0.5 | K10: Apr | L10: 0.4 | M10: 2.8 | N10: 0.3 | O10: 0.5 | Q10: Mean: for 1/2 hourly and daily periods calculate mean of values across all operational combustion lines for the month
A11: May | B11: 0 | C11: =(L11+L26)/2 -> 0.35 | D11: 1.1 | E11: 15 | F11: =(N11+N26)/2 -> 0.25 | G11: 0.45 | K11: May | L11: 0.4 | M11: 1.4 | N11: 0.3 | O11: 0.5
A12: Jun | B12: 0 | C12: =(L12+L27)/2 -> 0.3 | D12: 2.25 | E12: 15 | F12: =(N12+N27)/2 -> 0.25 | G12: 0.65 | K12: Jun | L12: 0.4 | M12: 2.8 | N12: 0.3 | O12: 0.8
A13: Jul | B13: 0 | C13: =(L13+L28)/2 -> 0.3 | D13: 4.2 | E13: 15 | F13: =(N13+N28)/2 -> 0.25 | G13: 0.65 | K13: Jul | L13: 0.3 | M13: 3.2 | N13: 0.3 | O13: 0.4 | Q13: Maximum: for 1/2 hourly and daily periods use the highest value across all operational combustion lines for the month
A14: Aug | B14: 0 | C14: =(L14+L29)/2 -> 0.35 | D14: 3 | E14: 15 | F14: =(N14+N29)/2 -> 0.3 | G14: 0.75 | K14: Aug | L14: 0.4 | M14: 4.3 | N14: 0.4 | O14: 1.1
A15: Sep | B15: 0 | C15: =(L15+L30)/2 -> 0.35 | D15: 2.75 | E15: 15 | F15: =(N15+N30)/2 -> 0.35 | G15: 0.55 | K15: Sep | L15: 0.4 | M15: 1.9 | N15: 0.4 | O15: 0.5
A16: Oct | B16: 0 | C16: =(L16+L31)/2 -> 0.35 | D16: 3 | E16: 15 | F16: =(N16+N31)/2 -> 0.35 | G16: 0.7 | K16: Oct | L16: 0.4 | M16: 4.6 | N16: 0.4 | O16: 0.9
A17: Nov | B17: 0 | C17: =(L17+L32)/2 -> 0.4 | D17: 2.05 | E17: 15 | F17: =(N17+N32)/2 -> 0.3 | G17: 0.6 | K17: Nov | L17: 0.4 | M17: 1.7 | N17: 0.3 | O17: 0.6
A18: Dec | B18: 0 | C18: =(L18+L33)/2 -> 0.4 | D18: 5.15 | E18: 15 | F18: =(N18+N33)/2 -> 0.35 | G18: 0.9 | K18: Dec | L18: 0.5 | M18: 1.5 | N18: 0.4 | O18: 0.8
K19: Annual | L19: =AVERAGE(L7:L18) -> 0.4 | M19: =MAX(M7:M18) -> 8.1 | N19: =AVERAGE(N7:N18) -> 0.35 | O19: =MAX(O7:O18) -> 1.2
J21: =+A6 -> 2022 | K21: mg/Nm3 | L21: Monthly 1/2 hourly mean | M21: Monthly 1/2 hourly maximum | N21: Monthly daily mean | O21: Monthly daily maximum
J22: A2 | K22: Jan | L22: 0.4 | M22: 0.9 | N22: 0.3 | O22: 0.5
K23: Feb | L23: 0.3 | M23: 1.1 | N23: 0.3 | O23: 0.7
K24: Mar | L24: 0.4 | M24: 0.8 | N24: 0.3 | O24: 0.5
K25: Apr | L25: 0.3 | M25: 0.8 | N25: 0.3 | O25: 0.5
K26: May | L26: 0.3 | M26: 0.8 | N26: 0.2 | O26: 0.4
K27: Jun | L27: 0.2 | M27: 1.7 | N27: 0.2 | O27: 0.5
K28: Jul | L28: 0.3 | M28: 5.2 | N28: 0.2 | O28: 0.9
K29: Aug | L29: 0.3 | M29: 1.7 | N29: 0.2 | O29: 0.4
K30: Sep | L30: 0.3 | M30: 3.6 | N30: 0.3 | O30: 0.6
K31: Oct | L31: 0.3 | M31: 1.4 | N31: 0.3 | O31: 0.5
K32: Nov | L32: 0.4 | M32: 2.4 | N32: 0.3 | O32: 0.6
K33: Dec | L33: 0.3 | M33: 8.8 | N33: 0.3 | O33: 1
K34: Annual | L34: =AVERAGE(L22:L33) -> 0.3166666667 | M34: =MAX(M22:M33) -> 8.8 | N34: =AVERAGE(N22:N33) -> 0.2666666667 | O34: =MAX(O22:O33) -> 1
J36: =+A6 -> 2022 | K36: mg/Nm3 | L36: Monthly 1/2 hourly mean | M36: Monthly 1/2 hourly maximum | N36: Monthly daily mean | O36: Monthly daily maximum
J37: A3 | K37: Jan
K38: Feb
K39: Mar
K40: Apr
K41: May
K42: Jun
K43: Jul
K44: Aug
K45: Sep
K46: Oct
K47: Nov
A48: Comments : | K48: Dec
A49: An indicated ELV value of zero in the table above means that no ammonia limit is set in the permit. | K49: Annual | L49: =AVERAGE(L37:L48) -> #DIV/0! | M49: =MAX(M37:M48) -> 0 | N49: =AVERAGE(N37:N48) -> #DIV/0! | O49: =MAX(O37:O48) -> 0
J51: =+A6 -> 2022 | K51: mg/Nm3 | L51: Monthly 1/2 hourly mean | M51: Monthly 1/2 hourly maximum | N51: Monthly daily mean | O51: Monthly daily maximum
J52: A4 | K52: Jan
K53: Feb
K54: Mar
K55: Apr
K56: May
K57: Jun
K58: Jul
K59: Aug
K60: Sep
K61: Oct
K62: Nov
K63: Dec
K64: Annual | L64: =AVERAGE(L52:L63) -> #DIV/0! | M64: =MAX(M52:M63) -> 0 | N64: =AVERAGE(N52:N63) -> #DIV/0! | O64: =MAX(O52:O63) -> 0
J66: =+A6 -> 2022 | K66: mg/Nm3 | L66: Monthly 1/2 hourly mean | M66: Monthly 1/2 hourly maximum | N66: Monthly daily mean | O66: Monthly daily maximum
J67: A5 | K67: Jan
K68: Feb
K69: Mar
K70: Apr
K71: May
K72: Jun
K73: Jul
K74: Aug
K75: Sep
K76: Oct
K77: Nov
K78: Dec
K79: Annual | L79: =AVERAGE(L67:L78) -> #DIV/0! | M79: =MAX(M67:M78) -> 0 | N79: =AVERAGE(N67:N78) -> #DIV/0! | O79: =MAX(O67:O78) -> 0
